Cogmind - Beta 12 X6 @@@ ROGUE MODE // 2023.02.22 @ 01:35:10 Player: youngster Result: Destroyed by Alpha 7 with Multirail Performance ------------- Evolutions (9) 4500 Regions Visited (36) 7200 Robots Destroyed (726) 3630 Value Destroyed (35911) 35911 Prototype IDs (72) 1440 Alien Tech Used (4) 800 Bonus (30359) 30359 TOTAL SCORE: 83840 Bonus ------- Triggered High Security 1500 High Alert Combat Kills 16815 Follower Combat Kills 2799 Entered Garrisons 400 Network Hubs Disabled 200 Met Imprinter 300 Destroyed Z-Imprinter 1000 Triggered Deep Caves Wall 500 Exposed GOLEM Chamber 500 Met Zhirov 300 Met Warlord at Base 500 MAIN.C Attacked Warlord 500 Warlord Defense Kills 2932 Built Enhanced Grunts 300 Met R17 at Cetus 500 Met Warlord at Research 2000 Scanned by Researcher 500 Friendly Fire -1187 Cogmind --------- Core Integrity 0/1600 Matter 48/300 Energy 100/100 System Corruption 17% Temperature Cool (11) Movement Core (50) Location -1/Command Parts ------- > --- POWER (4) -------- (None) > --- PROPULSION (6) --- (None) > --- UTILITY (14) ----- Advanced Signal Interpreter Experimental Targeting Computer Improved Target Analyzer System Mapper > --- WEAPON (2) ------- (None) > --- INVENTORY (5) ---- Antimissile System Enhanced Nova Cannon Micro-nuke Launcher Core Stripper Peak State ------------ > --- POWER ------------ Assembled Flux Generator Quantum Reactor Quantum Reactor > --- PROPULSION ------- Armored Heavy Treads Improved Heavy Siege Treads Advanced Heavy Siege Treads > --- UTILITY ---------- Huge Storage Unit Spectral Analyzer Makeshift Sensor Array Advanced Signal Interpreter Long-range Terrain Scanner Advanced Terrain Scan Processor Assembled Combat Suite Experimental Targeting Computer Quantum Capacitor Centrium Heavy Armor Plating System Mapper Hacking Drone Bay > --- WEAPON ----------- Cooled Nova Cannon Micro-nuke Launcher > --- INVENTORY -------- Zero-point Reactor Vortex Chain Reactor Heavy Siege Treads Experimental Energy Well Zionite Biocell Matter Compressor Seismic Detector Advanced Weapon Cycler Advanced Transmission Jammer Centrium Medium Armor Plating Graphene Brace Experimental EM Disruption Field Antimissile System Advanced Component Analysis Suite Transdimensional Reconstructor Compact HERF Cannon Improved Potential Cannon 8R-AWN's Boregun Heavy Flail Core Stripper [Rating: 225] Favorites ----------- Power Assembled Flux Generator Engine Makeshift Power Source Power Core Reinforced Fission Core Reactor Assembled Flux Generator Propulsion Assembled Alloy Leg Treads Medium Treads Leg Assembled Alloy Leg Wheel Armored Wheel Hover Unit Cooled Gravmag System Flight Unit Improved Q-thruster Utility Huge Storage Unit Device GOLEM Unit Storage Huge Storage Unit Processor Improved Signal Interpreter Hackware System Mapper Protection Centrium Medium Armor Plating Artifact Phase Redirector Weapon Assembled Focal Cannon Energy Gun EM Shotgun Energy Cannon Assembled Focal Cannon Ballistic Gun Enhanced Autogun Ballistic Cannon Bore Cannon Launcher Rocket Launcher Special Weapon RU-N14's Throwing Claymores v3 Impact Weapon Heavy Flail Build | -11 -10 -10 -9 -9 -8 -8 -8 -8 -8 -7 -7 -7 -7 -7 -6 -6 -6 -6 -6 -6 -5 -5 -5 -5 -4 -4 -4 -4 -4 -3 -3 -3 -2 -2 -1 -1 ------- Run | Jun Mat Min Mat Min Mat Gar Mat Gar Mat Fac Low Low Zio Dee Pro Fac Ext Cet Arc Hub Fac Upp Upp Zhi Pro Fac Upp Upp War Pro Res Tes Res Qua Acc Com Slots Evolved 18 | . . . 2 . 2 . . . . 2 . . . . . 2 . . . . 2 . . . . 2 . . . . 2 . 2 . 2 . Power 3 | . . . . . 1 . . . . . . . . . . . . . . . . . . . . . . . . . 1 . . . 1 . Propulsion 4 | . . . . . . . . . . 1 . . . . . . . . . . . . . . . . . . . . 1 . 2 . . . Utility 11 | . . . 2 . 1 . . . . 1 . . . . . 2 . . . . 2 . . . . 2 . . . . . . . . 1 . Weapon . | . . . . . . . . . . . . . . . . . . . . . . . . . . . . . . . . . . . . . Parts Attached 1122 | 7 30 16 24 24 37 38 15 22 25 20 18 33 9 47 20 31 22 10 6 10 29 25 7 9 23 75 14 3 26 11 161 117 29 41 62 26 Power 47 | 1 1 . 2 2 8 4 . . 1 1 3 . . 2 . . . 2 . . . . . 1 . . . . 1 . 3 2 3 . 5 5 Engine 19 | 1 1 . 2 2 4 2 . . 1 1 3 . . 1 . . . . . . . . . . . . . . . . . . . . 1 . Core 6 | . . . . . 4 2 . . . . . . . . . . . . . . . . . . . . . . . . . . . . . . Reactor 22 | . . . . . . . . . . . . . . 1 . . . 2 . . . . . 1 . . . . 1 . 3 2 3 . 4 5 Propulsion 89 | 2 7 4 9 . 10 7 3 3 2 1 1 4 . 6 1 . 1 . . . . . . 1 . 2 . . 2 1 7 1 4 1 5 4 Treads 44 | 2 . . 2 . 7 4 2 2 . 1 1 2 . . . . . . . . . . . . . 1 . . . . 6 1 4 1 5 3 Leg 20 | . 3 2 3 . . . . . . . . . . 5 1 . 1 . . . . . . . . 1 . . 2 1 1 . . . . . Wheel 23 | . 4 2 4 . 3 3 1 1 2 . . 2 . 1 . . . . . . . . . . . . . . . . . . . . . . Hover 1 | . . . . . . . . . . . . . . . . . . . . . . . . 1 . . . . . . . . . . . . Flight 1 | . . . . . . . . . . . . . . . . . . . . . . . . . . . . . . . . . . . . 1 Utility 681 | 2 9 3 4 7 12 17 10 12 13 10 7 15 5 20 14 29 13 2 5 7 24 17 5 5 16 68 13 3 12 6 121 88 19 27 33 8 Device 469 | 1 4 2 . 4 5 12 8 9 7 6 3 9 2 6 6 16 8 . 3 3 17 10 4 3 8 57 8 2 7 4 95 69 14 24 27 6 Storage 24 | 1 3 . . . . 2 . . . 1 . . . 2 6 . . . . . . . . . . . 1 . . . 2 3 . . 3 . Processor 18 | . . . . 1 . . . . . 1 1 . . . . 1 . . . . . . . . . 3 . . 3 . 1 3 1 . 1 2 Hackware 9 | . . . . . . . . . 1 . . 1 . . . 2 . . . . . 1 . . . . . . . . 2 1 1 . . . Protection 160 | . 2 1 4 2 7 3 2 3 5 2 3 5 3 12 2 10 5 2 2 4 7 6 1 2 8 8 4 1 2 2 21 12 3 2 2 . Artifact 1 | . . . . . . . . . . . . . . . . . . . . . . . . . . . . . . . . . . 1 . . Weapon 305 | 2 13 9 9 15 7 10 2 7 9 8 7 14 4 19 5 2 8 6 1 3 5 8 2 2 7 5 1 . 11 4 30 26 3 13 19 9 Energy Gun 20 | 2 4 5 5 4 . . . . . . . . . . . . . . . . . . . . . . . . . . . . . . . . Energy Cannon 68 | . . . . . . . . 3 1 1 2 1 1 4 3 . . . . . . . . . . . . . . 1 11 13 2 6 12 7 Ballistic Gun 81 | . 6 1 . 7 5 6 2 2 5 2 3 7 1 9 1 2 3 3 1 1 . . . 1 1 2 . . 3 . 4 2 . . 1 . Ballistic Cannon 11 | . . . . . 1 . . . . . . . . . . . 2 . . 1 2 2 1 . 2 . . . . . . . . . . . Launcher 70 | . 1 2 2 4 1 2 . 2 . 1 1 3 2 2 1 . 1 1 . . 3 4 . 1 2 2 1 . 2 1 6 7 1 7 5 2 Special Weapon 8 | . 2 1 . . . . . . 1 1 . . . . . . . . . . . . . . . . . . 3 . . . . . . . Impact Weapon 47 | . . . 2 . . 2 . . 2 3 1 3 . 4 . . 2 2 . 1 . 2 1 . 2 1 . . 3 2 9 4 . . 1 . Slashing Weapon . | . . . . . . . . . . . . . . . . . . . . . . . . . . . . . . . . . . . . . Piercing Weapon . | . . . . . . . . . . . . . . . . . . . . . . . . . . . . . . . . . . . . . Special Melee Weapon . | . . . . . . . . . . . . . . . . . . . . . . . . . . . . . . . . . . . . . Unidentified Prototypes 42 | . 4 1 . . 1 1 . . . . . . . 7 . . . 1 . 2 . . . 4 . 1 1 . 8 . 1 6 1 1 1 1 Parts Lost 77 | . 6 2 5 5 4 2 1 1 4 . 1 . . 7 2 . 1 . . . . 1 . . 2 1 1 . . . 3 2 . 1 16 9 Power 14 | . . . 2 . 3 1 . . 1 . 1 . . . . . . . . . . . . . . . . . . . 1 . . . 5 . Propulsion 12 | . 4 . . . 1 1 . . . . . . . 1 . . . . . . . . . . . . . . . . . . . . 1 4 Utility 42 | . . 1 2 4 . . . 1 3 . . . . 6 1 . 1 . . . . 1 . . 1 1 1 . . . 2 2 . 1 9 5 Weapon 9 | . 2 1 1 1 . . 1 . . . . . . . 1 . . . . . . . . . 1 . . . . . . . . . 1 . Highest Loss Streak 8 | . 4 1 2 2 1 1 1 1 2 . 1 . . 4 2 . 1 . . . . 1 . . 2 1 1 . . . 1 1 . 1 8 5 To Critical Strikes 3 | . 3 . . . . . . . . . . . . . . . . . . . . . . . . . . . . . . . . . . . Average Slot Usage (%) 86 | . 99 99 96 93 98 83 89 86 75 90 92 91 91 85 83 85 81 81 85 84 87 86 87 86 87 88 88 89 88 89 82 77 74 77 72 58 Engine 3 | . 14 14 10 11 14 9 9 9 8 7 11 15 15 5 . . . . . . . . . . . . . . . . . . . . . . Reactor 4 | . . . . . . . . . . . . . . 5 7 6 6 7 6 6 5 5 5 5 5 5 5 5 5 5 7 9 7 8 9 8 Treads 4 | . 3 . 9 11 14 8 9 9 1 7 7 9 15 10 . . . . . . . . . . . . . . . . 5 8 11 12 10 9 Leg 9 | . 19 14 2 . . . . . . . . . . 7 22 20 20 20 20 20 17 16 17 15 16 14 15 14 15 15 6 . . . . . Wheel 1 | . 4 13 10 11 3 4 9 8 8 7 7 5 . . . . . . . . . . . . . . . . . . . . . . . . Device 15 | . 13 13 9 12 19 23 25 24 12 20 17 13 13 6 9 16 7 6 17 14 15 15 16 16 15 15 16 20 18 29 21 22 15 18 15 7 Storage 9 | . 14 14 11 11 9 9 9 9 9 7 7 7 7 10 12 13 13 13 13 13 11 11 11 11 11 10 9 10 9 5 4 6 4 4 3 4 Processor 12 | . . . . . . . . . . 7 12 15 15 15 15 13 13 13 13 13 11 11 11 11 11 16 20 20 19 15 18 18 16 16 15 18 Protection 7 | . . . 20 13 15 2 . 1 7 7 7 8 8 6 . 2 5 6 1 2 12 11 11 11 12 13 9 10 10 10 6 3 4 4 3 . Energy Gun 1 | . 21 23 19 9 . . . . . . . . . . . . . . . . . . . . . . . . . . . . . . . . Energy Cannon 4 | . . . . . . . . . 1 . . . . 5 12 8 6 6 6 6 5 7 5 5 8 9 7 10 5 5 6 5 7 7 3 2 Ballistic Gun 3 | . 5 . . 9 17 15 17 14 15 7 7 11 5 1 . 3 3 3 5 1 . . . 3 . . . . 1 . . . . . . . Impact Weapon 1 | . . . 2 . . 1 . . 1 5 6 3 5 5 . . 1 2 . 3 . 2 2 1 1 . 2 . . 2 1 1 . . . . Naked Turns . | . . . . . . . . . . . . . . . . . . . . . . . . . . . . . . . . . . . . . Heaviest Build 221 | 13 52 53 57 60 76 178 193 192 199 182 126 102 109 143 152 158 161 159 158 161 173 175 160 171 179 184 189 186 186 186 209 220 211 198 221 189 Greatest Support 230 | 40 40 16 16 12 43 87 24 24 40 28 28 103 103 103 84 84 90 90 90 90 90 90 90 90 90 110 110 90 90 90 155 140 230 230 215 195 Greatest Overweight (x) 16 | . 3 3 4 4 5 14 16 15 7 6 4 3 1 4 2 1 2 2 2 1 1 2 1 2 2 2 2 2 2 2 3 1 1 . 1 . Average Overweight (x) 1 | . 1 2 3 4 2 4 7 7 5 4 3 2 . 1 1 1 1 1 1 1 1 1 1 1 1 1 1 1 1 1 1 1 . . . . Largest Inventory Capacity 30 | 8 20 20 20 20 20 30 30 30 30 30 25 25 25 25 25 25 25 25 25 25 25 25 25 25 25 25 25 25 25 25 25 25 25 25 25 25 Average Capacity 24 | 7 14 20 20 20 20 28 30 30 30 26 25 25 25 24 25 25 25 25 25 25 25 25 25 25 25 25 24 25 25 25 25 25 25 25 25 17 Most Carried 30 | 4 20 20 20 20 20 30 30 30 30 30 25 25 25 25 25 25 25 25 25 25 25 25 25 25 25 25 25 25 25 25 25 25 25 25 25 24 Average Carried 23 | 2 12 19 19 19 19 26 29 29 29 25 24 24 24 24 23 24 23 24 24 24 24 24 24 24 24 24 24 24 24 24 24 24 24 24 23 15 Final Capacity 30 | 8 20 20 20 20 20 30 30 30 30 25 25 25 25 25 25 25 25 25 25 25 25 25 25 25 25 25 25 25 25 25 25 25 25 25 25 5 Final Carried 30 | 4 20 19 20 20 20 29 30 28 30 25 25 25 25 25 25 25 24 25 25 25 25 25 25 25 25 24 25 25 25 25 24 25 25 25 24 5 Class Distribution -------------------- 29% | Golem 18% | Mutant 8% | Commander-Golem 7% | Scavenger-Mutant 7% | Scavenger-Golem 6% | Hauler-Mutant 4% | Hacker-Mutant 4% | Derelict-Assassin 3% | Assassin 3% | Derelict-Mutant Dominant Class ---------------- Mutant | -10/Materials Mutant | -10/Mines Mutant | -9/Materials Mutant | -9/Mines Scavenger-Mutant | -8/Materials Hauler-Mutant | -8/Garrison Hauler-Mutant | -8/Materials Hauler-Mutant | -8/Garrison Hauler-Mutant | -8/Materials Mutant | -7/Factory Derelict-Assassin | -7/Lower Caves Derelict-Skirmisher | -7/Lower Caves Derelict-Assassin | -7/Zion Golem | -7/Deep Caves Golem | -6/Proximity Caves Golem | -6/Factory Commander-Golem | -6/Extension Commander-Golem | -6/Cetus Commander-Golem | -6/Archives Commander-Golem | -6/Hub_04(d) Golem | -5/Factory Golem | -5/Upper Caves Golem | -5/Upper Caves Golem | -5/Zhirov Golem | -4/Proximity Caves Golem | -4/Factory Scavenger-Golem | -4/Upper Caves Scavenger-Golem | -4/Upper Caves Golem | -4/Warlord Scavenger-Mutant | -3/Proximity Caves Scavenger-Mutant | -3/Research Mutant | -3/Testing Hacker-Mutant | -2/Research Hacker-Mutant | -2/Quarantine Generator-Mutant | -1/Access Generator-Mutant | -1/Command Resources | -11 -10 -10 -9 -9 -8 -8 -8 -8 -8 -7 -7 -7 -7 -7 -6 -6 -6 -6 -6 -6 -5 -5 -5 -5 -4 -4 -4 -4 -4 -3 -3 -3 -2 -2 -1 -1 ----------- Run | Jun Mat Min Mat Min Mat Gar Mat Gar Mat Fac Low Low Zio Dee Pro Fac Ext Cet Arc Hub Fac Upp Upp Zhi Pro Fac Upp Upp War Pro Res Tes Res Qua Acc Com Matter Collected 19720 | 262 761 292 230 482 1197 877 411 675 754 174 385 664 269 1084 232 506 415 149 102 77 576 421 108 60 450 1204 170 33 328 171 1957 1894 290 1057 607 396 Remotely 50 | . . . . . . . . . . . . 50 . . . . . . . . . . . . . . . . . . . . . . . . Salvage Created 40158 | 164 769 339 905 445 1495 934 411 456 1019 187 557 513 142 1291 916 1022 723 147 40 61 1052 483 84 140 802 2459 190 61 754 163 5976 8125 719 4279 1908 427 Parts 1697 | 12 40 13 42 44 82 50 18 22 46 6 8 26 1 40 28 55 25 7 3 4 59 11 2 . 23 127 11 2 35 7 252 311 33 132 89 31 Haulers Intercepted 6 | . 1 . . . 1 1 1 . . . . . . . . . . . . . 1 . . . . . . . . . . . . . 1 . Recyclers Shooed 28 | . 4 2 . . 1 . . . 2 . . . . . 2 2 2 . . . 5 . . . . 2 . . . . 5 . . . 1 . Parts Field Recycled . | . . . . . . . . . . . . . . . . . . . . . . . . . . . . . . . . . . . . . Retrieved Matter . | . . . . . . . . . . . . . . . . . . . . . . . . . . . . . . . . . . . . . Parts Self-Destructed 114 | . . . . . . . . . . . 5 15 . . 36 . . . . . . 12 7 . 24 . 10 . . 5 . . . . . . Prevented 12 | . . . . . . . . . . . 2 . 1 . 5 . . . . . . . . . . . . . . 4 . . . . . . Kills | -11 -10 -10 -9 -9 -8 -8 -8 -8 -8 -7 -7 -7 -7 -7 -6 -6 -6 -6 -6 -6 -5 -5 -5 -5 -4 -4 -4 -4 -4 -3 -3 -3 -2 -2 -1 -1 ------- Run | Jun Mat Min Mat Min Mat Gar Mat Gar Mat Fac Low Low Zio Dee Pro Fac Ext Cet Arc Hub Fac Upp Upp Zhi Pro Fac Upp Upp War Pro Res Tes Res Qua Acc Com Combat Hostiles Destroyed 617 | . 6 7 17 18 25 18 4 15 16 2 6 19 . 12 13 15 11 2 . 1 19 14 1 . 12 37 6 . 21 4 67 91 8 80 37 13 Guns 106 | . 6 2 12 3 22 12 4 4 12 1 3 4 . 3 . 3 2 2 . . . . . . . . . . 2 . . 7 . . 2 . Cannons 187 | . . . . . . . . 2 2 . 2 . . . 11 12 8 . . 1 12 3 1 . 6 30 3 . 7 . 28 28 2 17 9 3 AOE 229 | . . 5 4 15 3 6 . 7 . . 1 15 . 6 2 . . . . . 7 11 . . 5 6 3 . 12 3 11 21 . 58 18 10 Classes Destroyed 30 | 2 4 4 1 . 1 3 . . . . 1 2 . 3 . . . . . . . . . . 1 1 . . 3 . . 1 1 1 1 . Worker 24 | . . 1 . . 1 . . . . . . . . . . . . . . . 1 . . . . 3 . . . . 5 4 . 2 4 3 Builder 36 | . 1 . 2 . . . . . 1 . . . . . . 1 . . . . 3 . . . . 3 . . . . 10 6 . . 9 . Tunneler 14 | 5 . . . 4 2 . . . . . . . . . . . . . . . 1 . . . . . . . . . . . 1 . 1 . Hauler 6 | . 1 . . . 1 1 1 . . . . . . . . . . . . . 1 . . . . . . . . . . . . . 1 . Recycler 26 | 1 4 2 3 3 4 . 1 . 2 1 . . . . 2 . . . . . . . . . . . . . . . 2 1 . . . . Carrier 1 | . . . . . . . . . . . . . . . . . . . . . . . . . . . . . . . . . . 1 . . Minesweeper 2 | . . . . . . . . . . . . 1 . . . . . . . . . . . . 1 . . . . . . . . . . . Mechanic 12 | . . . . . . . . . . . . . . . . . . . . . . . . . 1 1 . . 1 . 1 2 . 5 1 . Operator 4 | . . . . . 1 . . . . . . . . . . . . . 1 . . . . . . . . . . . . 1 . 1 . . Watcher 25 | . 2 . 1 . 1 . 1 . . . . . . . 1 . 1 . . 1 2 . . . . 6 . . . . 3 3 . 2 1 . Swarmer 86 | . . 3 4 18 5 3 . 7 . . . 10 . . 3 . . . . . . 3 . . 4 1 5 . 4 3 3 . . . 5 5 Saboteur 9 | . . . . . . . . . . . . . . . . . . . . . . . . . . 1 . . . . 1 2 . 2 2 1 Grunt 265 | . 5 2 12 . 11 4 3 7 10 . 3 6 . . 2 9 6 1 . 1 12 10 . . 6 11 . . 4 . 30 47 1 47 13 2 Brawler 29 | . . . . . . 4 . . . . . . . . 2 . . . . . . . . . . 2 . . 3 . 2 7 . 7 2 . Duelist 35 | . . . . . . . . . . . 1 . . . 3 1 . . . . . . . . 1 . . . 2 . 4 13 . 5 5 . Protector 9 | . . . . . . . . . . . . . . . . . . . . . . . . . . . . . 1 . 1 1 . 6 . . Researcher 1 | . . . . . . . . . . . . . . . . . . . . . . . . . . . . . . . . 1 . . . . Sentry 51 | . . . 1 . 9 5 1 . 5 . 1 1 . . 3 1 4 . . . 2 1 1 . 1 4 1 . . 1 5 1 1 1 1 . Demolisher 1 | . . 1 . . . . . . . . . . . . . . . . . . . . . . . . . . . . . . . . . . Specialist 1 | . . . . . . . . . . . . . . . . . . . . . . . . . . . . . 1 . . . . . . . Hunter 34 | . . . . . . 1 . 1 1 1 1 . . . . 3 1 . . . . . . . . 4 . . . . 6 4 2 3 4 2 Programmer 73 | . . . . . . 1 . . . 1 . 1 . . . 1 . . . . 5 . . . . 14 . . 3 . 15 16 . 9 4 3 Heavy 1 | . . . . . . . . . . . . . . . . . . . . . . . . . . . . . . . . . . . 1 . Behemoth 1 | . . . . . . . . . . . . 1 . . . . . . . . . . . . . . . . . . . . . . . . Cetus Guard 1 | . . . . . . . . . . . . . . . . . . 1 . . . . . . . . . . . . . . . . . . Investigator 1 | . . . . . . . . . . . . . . . . . . . . . . . . . . . . . . . . . . 1 . . Striker 4 | . . . . . . . . . . . . . . . . . . . . . . . . . . . . . . . . . 4 . . . Executioner 3 | . . . . . . . . . . . . . . . . . . . . . . . . . . . . . 3 . . . . . . . Protovariant H 1 | . . . . . . . . . . . . . . . . . . . . . . . . . . . . . . . . 1 . . . . Z-Technician 5 | . . . . . . . . . . . . . . 5 . . . . . . . . . . . . . . . . . . . . . . Z-Light 8 | . . . . . . . . . . . . . . 8 . . . . . . . . . . . . . . . . . . . . . . Decomposer 6 | . . . . . . . . . . . . . . . . . . . . . . . . . . . 2 4 . . . . . . . . Packrat 5 | . . . . . . . . . . . 5 . . . . . . . . . . . . . . . . . . . . . . . . . Assembler 2 | . . . . . . . . . . . . . . 2 . . . . . . . . . . . . . . . . . . . . . . Assembled 1 | . . 1 . . . . . . . . . . . . . . . . . . . . . . . . . . . . . . . . . . Golem 3 | . . . . . . . . . . . . . . 3 . . . . . . . . . . . . . . . . . . . . . . Best Kill Streak 24 | 5 2 3 7 5 5 4 2 7 5 1 4 11 . 5 7 4 3 1 1 1 10 4 1 . 5 8 5 . 11 3 15 17 6 24 21 7 Combat Bots Only 22 | . 2 3 4 4 5 4 2 7 2 1 4 11 . 5 7 4 3 1 . 1 5 4 1 . 4 5 5 . 10 3 10 14 6 22 11 5 Max Kills in Single Turn 9 | 1 1 2 2 3 4 3 1 2 1 1 1 4 . 5 2 1 1 1 1 1 9 3 1 . 2 3 2 1 4 2 4 5 1 5 7 3 Gunslinging 1 | . . . . . . 1 . . . . . . . . . . . . . . . . . . . . . . . . . . . . . . Exploded 5 | . . 2 2 2 2 3 . 2 . . 1 4 . 2 1 . . . . . 5 3 . . 2 3 2 . 4 2 3 4 . 4 4 2 Melee . | . . . . . . . . . . . . . . . . . . . . . . . . . . . . . . . . . . . . . Uniques/NPCs Destroyed 2 | . 1 . . . . . . . . . . . . 1 . . . . . . . . . . . . . . . . . . . . . . 8R-AWN (-10/Materials) Z-Imprinter (-7/Deep Caves) Combat | -11 -10 -10 -9 -9 -8 -8 -8 -8 -8 -7 -7 -7 -7 -7 -6 -6 -6 -6 -6 -6 -5 -5 -5 -5 -4 -4 -4 -4 -4 -3 -3 -3 -2 -2 -1 -1 -------- Run | Jun Mat Min Mat Min Mat Gar Mat Gar Mat Fac Low Low Zio Dee Pro Fac Ext Cet Arc Hub Fac Upp Upp Zhi Pro Fac Upp Upp War Pro Res Tes Res Qua Acc Com Damage Taken 37701 | . 973 304 475 371 818 1020 344 807 1057 209 326 560 . 2438 1368 1055 1597 177 26 61 468 733 17 . 1595 2215 133 . 312 84 3061 2724 469 1867 5787 4250 Core 3819 | . 142 33 50 40 50 82 18 72 138 19 10 87 . 283 205 141 129 . 26 . 20 33 . . 58 218 6 . 36 11 155 76 . 75 256 1350 Absorbed by Shields 5487 | . . . . . . . . . 52 . . . . . . . . 36 . . 26 . . . . 527 82 . 325 86 542 2003 151 395 1146 116 Reduced by Siege Mode 598 | . . . . . . . . . . . . 32 . 169 . . . . . . . . . . . 12 . . . . 31 67 6 43 238 . Redirected to Shielding 190 | . . . 21 12 18 . . . . . . . . 139 . . . . . . . . . . . . . . . . . . . . . . Regen/Repaired (Parts) 3093 | . . . . . . . . . 265 . . . 689 . . 86 . . . . 510 . . . . . . . 181 . 107 394 . 861 . . Core Remaining (%) 65 | 100 . 30 . 77 . . . . 34 . . . . . 13 . . . . 65 . . . . 88 . . . . 76 . 82 . 94 . . Volleys Fired 2245 | 13 80 37 43 40 102 79 21 47 54 13 17 56 . 64 83 92 55 6 7 13 58 30 8 5 50 184 12 6 56 26 269 270 43 145 134 27 Largest 2 | 2 2 2 2 2 2 2 2 2 2 2 2 2 . 2 2 2 2 2 1 2 2 2 2 1 2 2 2 2 2 2 2 2 1 1 1 1 Hottest 200 | 80 90 90 90 85 55 55 55 88 96 63 63 66 . 66 63 58 82 58 30 82 82 82 82 30 82 55 50 50 55 113 119 94 94 94 200 200 Shots Fired 3016 | 26 159 49 79 62 202 151 42 67 102 18 24 94 . 86 101 132 88 7 7 14 86 41 10 5 72 258 14 12 68 29 289 274 43 145 134 26 Gun 1138 | 26 155 33 76 48 200 146 42 39 96 11 12 72 . 34 2 37 36 3 7 1 . . . 5 3 8 . . 8 . 7 30 . . 1 . Cannon 1625 | . . . . . . . . 20 6 5 8 5 . 32 95 95 52 4 . 13 82 32 10 . 63 242 12 12 53 27 263 208 43 108 116 19 Launcher 230 | . . 5 3 14 2 5 . 8 . . 4 17 . 20 4 . . . . . 4 9 . . 6 8 2 . 1 2 19 36 . 37 17 7 Special 23 | . 4 11 . . . . . . . 2 . . . . . . . . . . . . . . . . . . 6 . . . . . . . Kinetic 1018 | . 115 6 . 38 200 146 42 39 96 11 12 72 . 34 2 37 40 3 7 2 31 7 2 5 17 8 . . 8 . 7 30 . . 1 . Thermal 1311 | 26 4 11 . . . . . . . . . . . 18 71 95 48 4 . 12 51 25 8 . 49 242 12 12 53 24 181 165 15 72 94 19 Explosive 181 | . . 5 3 14 2 5 . 8 . . 4 17 . 20 4 . . . . . 4 9 . . 6 8 2 . 7 2 . . . 37 17 7 Electromagnetic 504 | . 40 27 76 10 . . . 20 6 5 8 5 . 14 24 . . . . . . . . . . . . . . 3 101 79 28 36 22 . Robot Hit Streak 47 | 6 22 7 14 10 11 31 11 16 13 13 12 29 . 7 11 15 19 5 3 5 10 14 15 3 8 47 5 2 12 8 30 28 21 19 38 3 Robot Miss Streak 6 | 3 5 3 3 5 3 3 3 3 3 1 1 3 . 3 4 3 3 1 2 1 3 3 1 1 6 4 1 2 2 . 2 3 1 2 4 2 Penetration Max 3 | . . 1 . . . . . . 1 . . . . 1 . 2 3 1 2 . 1 . . 1 1 . . . 2 . . 2 . . 2 . Secondary Targets 8 | . . . 1 . 1 3 . . 2 . 1 . . . . . . . . . . . . . . . . . . . . . . . . . Max Gunslinging Chain 1 | . . . 1 . 1 1 . . 1 . 1 . . . . . . . . . . . . . . . . . . . . . . . . . Capacitor 499 | . . . . . . . . . . . . . . . . . . . . . . . . . . . . . . . 94 159 36 108 102 . Shots Hit Robots 1912 | 14 129 34 65 32 144 117 29 42 76 15 20 59 3 46 49 66 66 6 4 5 39 24 2 4 45 143 7 4 45 7 174 193 27 96 74 7 Core Hits 1600 | 7 37 19 37 28 57 48 14 21 28 3 16 46 . 53 24 30 26 3 2 3 42 25 1 3 29 74 9 1 46 7 190 328 12 219 88 24 Critical Kills 40 | . . . . 1 1 1 1 . 1 . 1 1 . 6 . . 1 2 1 . 4 2 . . 2 . . . 2 . . 9 . . 4 . Critical Parts Destroyed 68 | . 1 2 . 3 . 1 1 1 4 . 1 2 2 4 . 5 3 . 4 . 4 1 . 2 5 1 . . 3 . . 17 . . 1 . Critical Strikes 122 | . 1 4 . 4 1 2 2 1 5 . 2 5 2 10 1 5 6 2 6 . 8 3 . 2 8 1 . . 6 . 1 27 1 . 6 . Meltdown 3 | . . . . . . . . . . . . . . . . . . . . . . . . . . . . . . . . 1 . . 2 . Destroy 104 | . 1 2 . 4 1 2 2 1 4 . . 5 . 7 . 5 6 2 6 . 8 3 . 2 8 1 . . 6 . . 25 . . 3 . Corrupt 5 | . . . . . . . . . . . . . . . 1 . . . . . . . . . . . . . . . 1 1 1 . 1 . Smash 8 | . . . . . . . . . 1 . 2 . 2 3 . . . . . . . . . . . . . . . . . . . . . . Sever 2 | . . 2 . . . . . . . . . . . . . . . . . . . . . . . . . . . . . . . . . . Melee Attacks 102 | . . . 4 . . 3 . . 13 9 11 6 10 14 . . 13 1 . . . 1 2 . 2 . . . 8 . 3 . . . 2 . Kinetic 2 | . . . . . . . . . . . . . . . . . . . . . . . . . . . . . . . . . . . 2 . Impact 100 | . . . 4 . . 3 . . 13 9 11 6 10 14 . . 13 1 . . . 1 2 . 2 . . . 8 . 3 . . . . . Slashing . | . . . . . . . . . . . . . . . . . . . . . . . . . . . . . . . . . . . . . Piercing . | . . . . . . . . . . . . . . . . . . . . . . . . . . . . . . . . . . . . . Sneak Attacks 6 | . . . 1 . . . . . . 1 3 . . . . . 1 . . . . . . . . . . . . . . . . . . . Combat Hostiles . | . . . . . . . . . . . . . . . . . . . . . . . . . . . . . . . . . . . . . Follow-up Attacks . | . . . . . . . . . . . . . . . . . . . . . . . . . . . . . . . . . . . . . Damage Inflicted 112564 | 164 1958 731 1376 1318 2720 2145 561 1492 1828 351 1151 2194 206 5848 2216 2318 2470 157 167 269 3417 2184 104 193 2803 8860 635 149 5132 525 10649 15214 1065 16802 10340 2852 Guns 14561 | 164 1930 428 836 471 2491 1723 508 441 1495 150 140 920 . 601 . 205 428 46 167 20 . . . 193 25 82 . . 214 . 13 805 . . 65 . Cannons 42463 | . . . . . . . . 432 122 133 199 110 . 217 1873 2069 1578 111 . 249 1633 789 104 . 1882 6607 322 149 1661 222 7282 6701 1065 3145 3241 567 Explosions 51125 | . . 236 501 847 224 422 . 619 . . 380 1164 . 3471 343 . . . . . 1621 1395 . . 726 2001 313 . 3071 303 3173 7681 . 13538 6910 2186 Melee 2996 | . . . 39 . . . . . 209 68 432 . 206 1439 . . 386 . . . . . . . 170 . . . . . . . . . 47 . Ramming 1145 | . 7 . . . 5 . 53 . 2 . . . . 120 . 44 78 . . . 163 . . . . 170 . . . . 181 27 . 119 77 99 Kinetic 13337 | . 1481 87 . 384 2491 1723 508 441 1495 150 140 920 . 601 . 205 451 46 167 20 311 86 . 193 211 82 . . 214 . 13 805 . . 112 . Thermal 39258 | 164 21 97 354 . . . . 52 . . . 35 . 2150 1537 2069 1555 111 . 249 2118 703 104 . 1696 6801 322 149 1661 123 4517 6499 47 1965 3169 990 Explosive 35650 | . . 206 147 847 224 422 . 567 . . 380 1129 . 1321 250 . . . . . 825 1395 . . 726 1807 313 . 3071 303 . . . 13538 6416 1763 Electromagnetic 20039 | . 449 341 836 87 . . . 432 122 133 199 110 . 217 429 . . . . . . . . . . . . . . 99 5938 7883 1018 1180 566 . Impact 2949 | . . . 39 . . . . . 209 68 432 . 206 1439 . . 386 . . . . . . . 170 . . . . . . . . . . . Slashing 186 | . . . . . . . . . . . . . . . . . . . . . . . . . . . . . 186 . . . . . . . Piercing . | . . . . . . . . . . . . . . . . . . . . . . . . . . . . . . . . . . . . . Highest Corruption 17 | . . . . . . 1 1 1 1 3 3 4 4 . . 1 1 1 1 2 2 2 . . . 3 1 . 1 1 9 13 . 1 13 17 Average Corruption 3 | . . . . . . 1 1 1 1 1 3 3 4 . . 1 1 1 1 2 1 1 . . . 2 1 . 1 1 4 10 . 1 5 14 Corruption Purged 10 | . . . . . . . . . . 1 . . . . . . . . 1 . . 2 . . . 5 1 . . . . . . . . . Corruption Blocked 40 | . . . . . . . . . . . . . . . . . . . . . . . . . . . . . . . . . 40 . . . Effects 385 | . . . . . . 7 3 11 5 2 21 34 2 . . 7 15 3 1 6 10 8 . . . 14 . . 3 7 70 109 . 2 16 29 Message Errors 85 | . . . . . . . 1 1 1 1 2 10 . . . . 4 . . 2 3 1 . . . 1 . . . 2 17 32 . . 3 4 Matter Fused 96 | . . . . . . . 1 1 1 1 6 10 1 . . 2 2 3 . 1 . 2 . . . 4 . . 1 3 21 25 . 1 2 8 Heat Flow Errors 53 | . . . . . . 1 . 2 1 . 4 6 . . . 2 4 . . 1 1 2 . . . . . . . . 6 16 . 1 2 4 Energy Discharges 46 | . . . . . . 3 1 2 1 . 2 2 . . . 1 1 . . . 3 1 . . . 1 . . . 1 10 13 . . 4 . Parts Rejected 5 | . . . . . . . . . . . . . . . . . . . . . . . . . . . . . . . 1 2 . . 1 1 Data Loss (minor) 40 | . . . . . . 1 . 5 . . 2 4 1 . . . 1 . . 1 2 1 . . . 2 . . 2 . 4 7 . . 1 6 Data Loss (major) 22 | . . . . . . 2 . . . . 1 1 . . . 1 1 . 1 1 1 . . . . 4 . . . 1 2 4 . . . 2 Misfires 17 | . . . . . . . . . 1 . 2 . . . . 1 1 . . . . . . . . 1 . . . . 5 5 . . 1 . Alerts 11 | . . . . . . . . . . . 2 . . . . . 1 . . . . . . . . 1 . . . . 3 2 . . . 2 Misdirections 2 | . . . . . . . . . . . . . . . . . . . . . . . . . . . . . . . . . . . 1 1 Weapon Failures 8 | . . . . . . . . . . . . 1 . . . . . . . . . 1 . . . . . . . . 1 3 . . 1 1 Overload Shots 7 | . . . . . . . . . . . . . . . . . . . . . . . . . . . . . . . . . . . . 7 Overflow Damage 5107 | . . 12 24 43 67 . . 58 53 43 332 7 127 932 49 71 225 . . 33 184 21 . . 305 497 . 79 173 . 294 338 4 481 536 119 Projectiles 1851 | . . . . . . . . . . . . . . 37 24 71 98 . . 33 61 . . . 138 356 . 79 83 . 249 251 4 162 148 57 Explosions 1604 | . . 12 24 43 67 . . 58 . . . 7 . 195 25 . . . . . 96 21 . . 23 98 . . 90 . 19 87 . 289 388 62 Melee 1652 | . . . . . . . . . 53 43 332 . 127 700 . . 127 . . . 27 . . . 144 43 . . . . 26 . . 30 . . Knockbacks 34 | . . . . . . . . . 1 . 1 . . 4 . 1 7 . . . 6 . . . 6 3 . . . . 1 . . 1 1 2 Impact 21 | . . . . . . . . . 1 . 1 . . 3 . 1 6 . . . . . . . 1 3 . . . . 1 . . 1 1 2 Kinetic 9 | . . . . . . . . . . . . . . . . . . . . . 5 . . . 4 . . . . . . . . . . . Secondary 4 | . . . . . . . . . . . . . . 1 . . 1 . . . 1 . . . 1 . . . . . . . . . . . Self-Inflicted Damage 1831 | . . 60 67 197 . . 26 81 1 . . . . . 161 . . . . . . 45 . . 53 126 60 . . 44 425 154 . 6 278 47 Shots 131 | . . 3 3 6 . . . 3 . . . . . . 4 . . . . . . 2 . . 1 4 1 . . 1 58 38 . 1 5 1 Rammed 53 | . 1 . . . 1 . 2 . 1 . . . . 16 . . . . . . . . . . . . . . . . 10 4 . 3 6 9 Targets Rammed 93 | . 4 . . . 1 . 2 . 1 . . . . 18 . 4 6 . . . 9 . . . . 9 . . . . 16 4 . 4 6 9 Kicked 36 | . 3 . . . . . . . . . . . . . . 4 6 . . . 9 . . . . 9 . . . . 5 . . . . . Crushed 4 | . . . . . . . . . . . . . . 2 . . . . . . . . . . . . . . . . 1 . . 1 . . Highest Temperature 466 | 108 10 238 237 33 243 220 356 251 413 62 266 436 . 396 278 254 244 4 6 189 117 180 12 . 16 . . . . 40 466 453 299 441 377 443 Average Temperature 93 | 47 4 80 69 12 53 63 100 55 189 28 95 104 . 110 112 45 45 4 4 73 19 55 7 . 11 . . . . 20 109 86 113 71 99 139 Received Heat Transfer 6465 | . 117 45 174 . 423 333 189 459 554 . 117 9 . 501 99 222 510 70 . 9 174 237 . . 321 311 . . 30 12 427 316 4 341 362 99 Effects 31 | . . . 2 . . 1 1 . 11 . . 2 . . . . . . . . . . . . . . . . . . 3 3 . 2 3 3 Shutdowns 9 | . . . . . . . 1 . 2 . . 1 . . . . . . . . . . . . . . . . . . . . . 1 2 2 Energy Bleed 9 | . . . . . . 1 . . 4 . . 1 . . . . . . . . . . . . . . . . . . . 1 . . 1 1 Interference 2 | . . . 2 . . . . . . . . . . . . . . . . . . . . . . . . . . . . . . . . . Matter Decay 3 | . . . . . . . . . 2 . . . . . . . . . . . . . . . . . . . . . . 1 . . . . Short Circuit 1 | . . . . . . . . . . . . . . . . . . . . . . . . . . . . . . . . 1 . . . . Damage (minor) 4 | . . . . . . . . . 3 . . . . . . . . . . . . . . . . . . . . . . . . 1 . . Damage (major) 3 | . . . . . . . . . . . . . . . . . . . . . . . . . . . . . . . 3 . . . . . Siege Activations 29 | . . . . . . 1 . . . . . 3 . 7 . . . . . . . . . . . 1 . . . . 4 3 2 5 3 . Total Turns 521 | . . . . . . 10 . . . . . 62 . 101 . . . . . . . . . . . 32 . . . . 62 85 25 68 76 . Longest Duration 47 | . . . . . . 10 . . . . . 31 . 27 . . . . . . . . . . . 32 . . . . 27 47 14 18 40 . Robots Corrupted 86 | . . . 1 . . . . 2 . 1 . . . 2 . . . . . . . . . . . . . . . 1 28 36 6 5 4 . Combat Hostiles 84 | . . . 1 . . . . 2 . 1 . . . 2 . . . . . . . . . . . . . . . 1 28 34 6 5 4 . Parts Fried 178 | . 1 1 4 1 . . . 3 2 1 1 . 2 . 1 . 1 . . . . . . . . . . . . 1 54 80 9 13 3 . Impact Corruptions 51 | . . . . . . . . . 3 1 10 . 4 17 . . 3 . . . 2 . . . 5 3 . . . . 2 . . 1 . . Robots Melted 6 | . . . . . . . . . . . . . . . . . . . . . . . . . 1 1 . . . . . 1 . . 3 . Combat Hostiles 6 | . . . . . . . . . . . . . . . . . . . . . . . . . 1 1 . . . . . 1 . . 3 . Parts Melted 34 | . . . . . . . . . . . . . . . . . 1 . . . 1 2 . . . 3 . . . 1 6 8 . 6 4 2 Heat Transferred 21609 | 375 18 272 400 . . . . 50 . . . 50 . . 900 1100 875 75 . 125 1225 375 50 . 900 3600 175 100 667 75 2386 3684 37 1406 2052 637 Parts Sabotaged 2 | . . . . . . . . . . . . . . . . . . . . . . . . . . . . . . . 1 . . . 1 . Parts Stolen . | . . . . . . . . . . . . . . . . . . . . . . . . . . . . . . . . . . . . . Parts Stripped . | . . . . . . . . . . . . . . . . . . . . . . . . . . . . . . . . . . . . . Power Chain Reactions 21 | . . 1 6 . . . . 1 . . . 1 . . 1 . . . . . . . . . . . . . . . 4 7 . . . . Missiles Intercepted . | . . . . . . . . . . . . . . . . . . . . . . . . . . . . . . . . . . . . . Alert | -11 -10 -10 -9 -9 -8 -8 -8 -8 -8 -7 -7 -7 -7 -7 -6 -6 -6 -6 -6 -6 -5 -5 -5 -5 -4 -4 -4 -4 -4 -3 -3 -3 -2 -2 -1 -1 ------- Run | Jun Mat Min Mat Min Mat Gar Mat Gar Mat Fac Low Low Zio Dee Pro Fac Ext Cet Arc Hub Fac Upp Upp Zhi Pro Fac Upp Upp War Pro Res Tes Res Qua Acc Com Peak Influence 3270 | 30 111 149 379 456 409 950 525 694 453 149 . . . . . 251 549 1021 569 363 601 . . . . 1296 . . . . 1624 2541 1491 3137 3270 3230 Initial 2052 | . 19 . . 108 94 239 462 289 338 140 . . . . . . 74 292 408 . 120 . . . . . . . . . 47 913 1428 774 1881 2052 Average 595 | 13 42 51 149 298 200 562 460 531 297 113 . . . . . 118 246 731 232 151 246 . . . . 438 . . . . 644 1422 1410 1369 2328 2398 Maximum Alert Level 5 | . . . 1 2 2 3 2 2 2 . . . . . . 1 2 3 2 1 2 . . . . 4 . . . . 5 5 4 5 5 5 Low Security (%) 33 | 100 100 100 74 . 50 . . . 12 100 . . . . . 84 50 . 45 53 51 . . . . 42 . . . . 8 . . . . . Level 1 24 | . . . 25 99 48 29 13 26 79 . . . . . . 15 31 10 36 46 27 . . . . 18 . . . . 34 . . . . . Level 2 10 | . . . . . 1 35 86 73 7 . . . . . . . 18 13 18 . 20 . . . . 11 . . . . 7 . . . . . Level 3 11 | . . . . . . 34 . . . . . . . . . . . 76 . . . . . . . 13 . . . . 38 23 . 34 . . Level 4 10 | . . . . . . . . . . . . . . . . . . . . . . . . . . 14 . . . . 7 48 100 44 . . Level 5 6 | . . . . . . . . . . . . . . . . . . . . . . . . . . . . . . . 2 25 . 2 100 62 High Security 1 | . . . . . . . . . . . . . . . . . . . . . . . . . . . . . . . . 2 . 17 . 37 Max Security . | . . . . . . . . . . . . . . . . . . . . . . . . . . . . . . . . . . . . . Squads Dispatched 152 | . 6 . 6 . 5 . 1 . 2 3 . 1 . . . 9 2 . . 4 8 . . . 1 15 . . . . 20 25 . 19 13 12 Investigation 31 | . 4 . 4 . . . . . 1 1 . 1 . . . 5 1 . . 3 2 . . . . 3 . . . . 5 . . . . 1 Extermination 30 | . . . . . . . . . . 1 . . . . . 3 . . . . 2 . . . . 6 . . . . 7 5 . 3 3 . Reinforcement 31 | . 2 . 2 . 2 . 1 . 1 1 . . . . . 1 1 . . 1 3 . . . . 2 . . . . 3 5 . 1 3 2 Assault 55 | . . . . . . . . . . . . . . . . . . . . . 1 . . . 1 4 . . . . 5 14 . 14 7 9 Garrison 5 | . . . . . 3 . . . . . . . . . . . . . . . . . . . . . . . . . . 1 . 1 . . Intercept . | . . . . . . . . . . . . . . . . . . . . . . . . . . . . . . . . . . . . . Searches Triggered . | . . . . . . . . . . . . . . . . . . . . . . . . . . . . . . . . . . . . . Construction Impeded 3 | . . . . . . . . . . . . . . . . . . . . . . . . . . 1 . . . . 1 1 . . . . Haulers Reinforced 4 | . . . . . . . . . . . . . . . . . . . . 1 2 . . . . . . . . . . 1 . . . . Active Scanning Responses . | . . . . . . . . . . . . . . . . . . . . . . . . . . . . . . . . . . . . . Cargo Convoy Interrupts . | . . . . . . . . . . . . . . . . . . . . . . . . . . . . . . . . . . . . . Stealth | -11 -10 -10 -9 -9 -8 -8 -8 -8 -8 -7 -7 -7 -7 -7 -6 -6 -6 -6 -6 -6 -5 -5 -5 -5 -4 -4 -4 -4 -4 -3 -3 -3 -2 -2 -1 -1 --------- Run | Jun Mat Min Mat Min Mat Gar Mat Gar Mat Fac Low Low Zio Dee Pro Fac Ext Cet Arc Hub Fac Upp Upp Zhi Pro Fac Upp Upp War Pro Res Tes Res Qua Acc Com Distress Signals 44 | . 1 . 2 . 4 . 3 . 3 . . . . . 1 1 2 2 . 3 2 . . . . 2 . . . . 5 . 9 . 4 . Communications Jammed 133 | . . . . . . . . . . . . . . . . . . . . 24 33 . . . . 11 . . . . 6 18 . . 38 3 Distress Signals 125 | . . . . . . . . . . . . . . . . . . . . 24 33 . . . . 11 . . . . 6 18 . . 30 3 Times Spotted 1069 | . 17 7 22 18 36 18 10 15 28 4 6 19 . 29 26 16 39 18 11 11 32 15 1 . 18 68 6 . 56 3 106 162 12 108 71 61 Peak Tracking Total 26 | . 4 2 4 4 5 5 4 5 4 3 4 7 . 16 7 4 6 5 . 4 8 5 1 . 5 10 5 . 11 2 11 12 3 19 11 26 Tactical Retreats 57 | . . . 1 3 1 . . 1 2 . . . . 1 2 1 8 . . 2 2 . . . . 1 1 . 2 . 8 6 . . 6 9 Traps | -11 -10 -10 -9 -9 -8 -8 -8 -8 -8 -7 -7 -7 -7 -7 -6 -6 -6 -6 -6 -6 -5 -5 -5 -5 -4 -4 -4 -4 -4 -3 -3 -3 -2 -2 -1 -1 ------- Run | Jun Mat Min Mat Min Mat Gar Mat Gar Mat Fac Low Low Zio Dee Pro Fac Ext Cet Arc Hub Fac Upp Upp Zhi Pro Fac Upp Upp War Pro Res Tes Res Qua Acc Com Traps Triggered 26 | . 3 . 3 . . 5 . . . 2 . . . . . 1 . . . 1 5 . . . . 1 . . . . . 2 . . . 3 Indirectly 2 | . . . . . . . . . . . . . . . . . . . . . . . . . . . . . . . . 2 . . . . Trap Hack Attempts . | . . . . . . . . . . . . . . . . . . . . . . . . . . . . . . . . . . . . . Triggered . | . . . . . . . . . . . . . . . . . . . . . . . . . . . . . . . . . . . . . Disarmed . | . . . . . . . . . . . . . . . . . . . . . . . . . . . . . . . . . . . . . Reprogrammed . | . . . . . . . . . . . . . . . . . . . . . . . . . . . . . . . . . . . . . Reused . | . . . . . . . . . . . . . . . . . . . . . . . . . . . . . . . . . . . . . Traps Extracted . | . . . . . . . . . . . . . . . . . . . . . . . . . . . . . . . . . . . . . Installed . | . . . . . . . . . . . . . . . . . . . . . . . . . . . . . . . . . . . . . Triggered 8 | . . . . . . . . . . . . . . . . . . . . . . . . . . . . . 5 . 1 2 . . . . Most Traps Carried 1 | . . . . . . . . . . . . 1 . . . . . . . . . . . . . . . . . . . . . . . . Machines | -11 -10 -10 -9 -9 -8 -8 -8 -8 -8 -7 -7 -7 -7 -7 -6 -6 -6 -6 -6 -6 -5 -5 -5 -5 -4 -4 -4 -4 -4 -3 -3 -3 -2 -2 -1 -1 ---------- Run | Jun Mat Min Mat Min Mat Gar Mat Gar Mat Fac Low Low Zio Dee Pro Fac Ext Cet Arc Hub Fac Upp Upp Zhi Pro Fac Upp Upp War Pro Res Tes Res Qua Acc Com Machines Disabled 67 | . . . 3 1 . 1 . . 3 . . 2 . 4 3 1 1 1 2 1 4 1 . . 1 10 . . . . 3 12 . 8 3 2 Max in Single Turn 4 | . . . 1 1 . 1 . . 1 . . 1 . 2 1 1 1 . . . 2 1 . . 1 3 . . . . 1 4 . 1 1 1 Garrison Access 10 | . . . . . . . . . . . . . . . . 2 . . . . 1 . . . . 2 . . . . 2 1 1 1 . . Garrison Relay 1 | . . . . . . 1 . . . . . . . . . . . . . . . . . . . . . . . . . . . . . . Network Hub 1 | . . . . . . . . . . . . . . . . . . . . 1 . . . . . . . . . . . . . . . . Machines Repaired 1 | . . . . . . . . . . . . . . . . . . . . 1 . . . . . . . . . . . . . . . . Machines Sabotaged . | . . . . . . . . . . . . . . . . . . . . . . . . . . . . . . . . . . . . . Overloaded Fab Kills . | . . . . . . . . . . . . . . . . . . . . . . . . . . . . . . . . . . . . . Hacking | -11 -10 -10 -9 -9 -8 -8 -8 -8 -8 -7 -7 -7 -7 -7 -6 -6 -6 -6 -6 -6 -5 -5 -5 -5 -4 -4 -4 -4 -4 -3 -3 -3 -2 -2 -1 -1 --------- Run | Jun Mat Min Mat Min Mat Gar Mat Gar Mat Fac Low Low Zio Dee Pro Fac Ext Cet Arc Hub Fac Upp Upp Zhi Pro Fac Upp Upp War Pro Res Tes Res Qua Acc Com Machines Accessed 129 | . 7 . 4 . 6 2 3 1 6 3 1 2 . . 3 9 11 . . 5 7 1 . 5 . 11 . . 3 . 14 8 4 6 6 1 Terminals 61 | . 5 . 2 . 2 2 2 1 4 2 . 1 . . 1 1 11 . . 5 2 . . . . 6 . . . . 3 1 . 3 6 1 Fabricators 12 | . . . . . . . . . . . . . . . 1 4 . . . . 1 . . . . 2 . . . . 3 1 . . . . Repair Stations 14 | . 1 . . . 1 . . . 1 . . . . . . 2 . . . . 2 . . . . . . . . . 3 2 1 1 . . Recycling Units 6 | . 1 . 2 . 1 . . . . 1 . . . . 1 . . . . . . . . . . . . . . . . . . . . . Scanalyzers 13 | . . . . . 1 . . . 1 . . . . . . . . . . . 1 . . . . 1 . . . . 3 3 2 1 . . Garrison Access 12 | . . . . . 1 . 1 . . . . . . . . 2 . . . . 1 . . . . 2 . . . . 2 1 1 1 . . Total Hacks 387 | . 21 . 9 . 20 4 12 3 31 6 1 10 . . 5 27 21 . . 9 32 1 . 17 . 33 . . 5 . 54 19 15 16 14 2 Successful 214 | . 7 . 6 . 10 1 8 . 18 3 1 10 . . 4 19 8 . . 5 15 1 . 17 . 15 . . 5 . 28 12 7 6 8 . Failed 173 | . 14 . 3 . 10 3 4 3 13 3 . . . . 1 8 13 . . 4 17 . . . . 18 . . . . 26 7 8 10 6 2 Catastrophic 41 | . 3 . . . 2 1 . 1 2 . . . . . . 2 3 . . 1 4 . . . . 6 . . . . 6 4 . 3 2 1 Database Lockouts . | . . . . . . . . . . . . . . . . . . . . . . . . . . . . . . . . . . . . . Manual 95 | . 13 . 7 . 6 . 7 . 18 3 . . . . . 7 1 1 . 6 3 . . . . 10 . . . . 5 1 . 2 5 . Terminals 177 | . 16 . 7 . 4 4 10 3 21 5 . 9 . . 2 3 21 . . 9 5 . . . . 20 . . . . 13 1 . 8 14 2 Fabricators 37 | . . . . . . . . . . . . . . . 2 14 . . . . 5 . . . . 4 . . . . 10 2 . . . . Repair Stations 50 | . 3 . . . 3 . . . 5 . . . . . . 6 . . . . 10 . . . . . . . . . 13 6 2 2 . . Recycling Units 9 | . 2 . 2 . 3 . . . . 1 . . . . 1 . . . . . . . . . . . . . . . . . . . . . Scanalyzers 65 | . . . . . 8 . . . 5 . . . . . . . . . . . 9 . . . . 6 . . . . 14 8 12 3 . . Garrison Access 24 | . . . . . 2 . 2 . . . . . . . . 4 . . . . 3 . . . . 3 . . . . 4 2 1 3 . . Terminal Hacks 83 | . 3 . 2 . . 1 5 . 6 1 1 10 . . 1 2 8 . . 2 1 1 . 17 . 4 . . 5 . 4 1 . 1 7 . Record 22 | . . . . . . . . . . 1 . 9 . . . . . . . . . 1 . 6 . . . . 5 . . . . . . . Part Schematic 10 | . 1 . . . . . 2 . . . . . . . . 2 . . . . . . . 3 . 1 . . . . 1 . . . . . Robot Schematic 1 | . 1 . . . . . . . . . . . . . . . . . . . . . . . . . . . . . . . . . . . Robot Analysis 7 | . . . 1 . . . 1 . . . . . . . . . . . . . . . . 4 . 1 . . . . . . . . . . Prototype ID Bank 7 | . 1 . . . . . 1 . . . . . . . . . . . . . . . . 4 . 1 . . . . . . . . . . Open Door 14 | . . . . . . . . . . . 1 1 . . 1 . 8 . . . . . . . . . . . . . . . . . 3 . Level Access Points 4 | . . . . . . . . . 1 . . . . . . . . . . 1 1 . . . . . . . . . . . . . 1 . Branch Access Points 1 | . . . . . . . . . . . . . . . . . . . . . . . . . . . . . . . . . . . 1 . Emergency Access Points 2 | . . . . . . . 1 . . . . . . . . . . . . . . . . . . . . . . . . . . . 1 . Fabricator Index 1 | . . . . . . . . . . . . . . . . . . . . . . . . . . . . . . . 1 . . . . . Scanalyzer Index 1 | . . . . . . . . . 1 . . . . . . . . . . . . . . . . . . . . . . . . . . . Alert Level 3 | . . . . . . . . . 2 . . . . . . . . . . . . . . . . . . . . . . . . . 1 . Unreport Threat 2 | . . . . . . . . . 2 . . . . . . . . . . . . . . . . . . . . . . . . . . . Locate Traps 7 | . . . 1 . . . . . . . . . . . . . . . . 1 . . . . . 1 . . . . 2 1 . 1 . . Garrison Registry 1 | . . . . . . 1 . . . . . . . . . . . . . . . . . . . . . . . . . . . . . . Fabricator Hacks 22 | . . . . . . . . . . . . . . . 2 9 . . . . 2 . . . . 3 . . . . 4 2 . . . . Network Status 2 | . . . . . . . . . . . . . . . . 1 . . . . 1 . . . . . . . . . . . . . . . Load Schematic 13 | . . . . . . . . . . . . . . . 1 5 . . . . 1 . . . . 2 . . . . 3 1 . . . . Build 7 | . . . . . . . . . . . . . . . 1 3 . . . . . . . . . 1 . . . . 1 1 . . . . Repair Station Hacks 29 | . 1 . . . 1 . . . 4 . . . . . . 4 . . . . 6 . . . . . . . . . 6 5 . 2 . . Scan Component 18 | . 1 . . . 1 . . . 2 . . . . . . 3 . . . . 3 . . . . . . . . . 4 3 . 1 . . Repair 11 | . . . . . . . . . 2 . . . . . . 1 . . . . 3 . . . . . . . . . 2 2 . 1 . . Recycling Unit Hacks 2 | . . . . . 1 . . . . . . . . . 1 . . . . . . . . . . . . . . . . . . . . . Retrieve Components 2 | . . . . . 1 . . . . . . . . . 1 . . . . . . . . . . . . . . . . . . . . . Scanalyzer 37 | . . . . . 5 . . . 5 . . . . . . . . . . . 4 . . . . 3 . . . . 9 3 6 2 . . Insert Component 25 | . . . . . 2 . . . 2 . . . . . . . . . . . 2 . . . . 2 . . . . 8 2 5 2 . . Analyze 12 | . . . . . 3 . . . 3 . . . . . . . . . . . 2 . . . . 1 . . . . 1 1 1 . . . Garrison Access Hacks 12 | . . . . . 1 . 1 . . . . . . . . 2 . . . . 1 . . . . 2 . . . . 2 1 1 1 . . Unlock Access 2 | . . . . . 1 . 1 . . . . . . . . . . . . . . . . . . . . . . . . . . . . . Seal Access 10 | . . . . . . . . . . . . . . . . 2 . . . . 1 . . . . 2 . . . . 2 1 1 1 . . Unauthorized Hacks 29 | . 3 . 4 . 2 . 2 . 3 2 . . . . . 2 . . . 3 1 . . . . 3 . . . . 3 . . . 1 . Terminals 18 | . 2 . 2 . 1 . 2 . 3 1 . . . . . . . . . 3 . . . . . 2 . . . . 1 . . . 1 . Botnet 10 | . 1 . 1 . 1 . 1 . 2 1 . . . . . . . . . . . . . . . 2 . . . . . . . . 1 . Operators 5 | . 1 . 1 . . . 1 . 1 . . . . . . . . . . . . . . . . . . . . . 1 . . . . . Sabotage 3 | . . . . . . . . . . . . . . . . . . . . 3 . . . . . . . . . . . . . . . . Fabricators 5 | . . . . . . . . . . . . . . . . 2 . . . . 1 . . . . 1 . . . . 1 . . . . . Recompile 5 | . . . . . . . . . . . . . . . . 2 . . . . 1 . . . . 1 . . . . 1 . . . . . Repair Stations 1 | . . . . . . . . . . . . . . . . . . . . . . . . . . . . . . . 1 . . . . . Mechanics 1 | . . . . . . . . . . . . . . . . . . . . . . . . . . . . . . . 1 . . . . . Recycling Units 5 | . 1 . 2 . 1 . . . . 1 . . . . . . . . . . . . . . . . . . . . . . . . . . Mask 2 | . 1 . . . 1 . . . . . . . . . . . . . . . . . . . . . . . . . . . . . . . Tunnel 3 | . . . 2 . . . . . . 1 . . . . . . . . . . . . . . . . . . . . . . . . . . Scanalyzers . | . . . . . . . . . . . . . . . . . . . . . . . . . . . . . . . . . . . . . Garrison Access . | . . . . . . . . . . . . . . . . . . . . . . . . . . . . . . . . . . . . . Data Cores Recovered . | . . . . . . . . . . . . . . . . . . . . . . . . . . . . . . . . . . . . . Used . | . . . . . . . . . . . . . . . . . . . . . . . . . . . . . . . . . . . . . Hacking Detections 89 | . 7 . 2 . 6 2 2 1 6 2 . 1 . . 1 8 5 1 . 3 5 . . . . 7 . . . . 13 5 3 4 4 1 Full Trace Events 16 | . 1 . . . . 1 . . 1 . . 1 . . 1 2 1 . . . 1 . . . . 2 . . . . 4 . . . . 1 Feedback Events . | . . . . . . . . . . . . . . . . . . . . . . . . . . . . . . . . . . . . . Feedback Blocked . | . . . . . . . . . . . . . . . . . . . . . . . . . . . . . . . . . . . . . Robot Schematics Acquired 4 | . 1 . . . . . . . . . . . 3 . . . . . . . . . . . . . . . . . . . . . . . Robots Built 1 | . . . . . . . . . . . . . . . . 1 . . . . . . . . . . . . . . . . . . . . Authchips 1 | . . . . . . . . . . . . . . . . 1 . . . . . . . . . . . . . . . . . . . . Time 81 | . . . . . . . . . . . . . . . . 81 . . . . . . . . . . . . . . . . . . . . Total Robot Build Rating 1 | . . . . . . . . . . . . . . . . 1 . . . . . . . . . . . . . . . . . . . . Part Schematics Acquired 36 | . 1 . . . 2 . 2 . 2 . . . 15 . . 2 . . . . . . . 3 . 1 . . . . 2 5 1 . . . Parts Built 8 | . . . . . . . . . . . . . . . 1 3 . . . . . . . . . 2 . . . . 2 . . . . . Authchips 3 | . . . . . . . . . . . . . . . . 1 . . . . . . . . . . . . . . 1 1 . . . . Time 345 | . . . . . . . . . . . . . . . 93 84 . . . . . . . . . 64 . . . . 69 35 . . . . Total Part Build Rating 53 | . . . . . . . . . . . . . . . 7 12 . . . . . . . . . 16 . . . . 18 . . . . . Parts Repaired 11 | . . . . . . . . . 2 . . . . . . 1 . . . . 3 . . . . . . . . . 2 2 . 1 . . Time 564 | . . . . . . . . . 70 . . . . . . 22 . . . . 180 . . . . . . . . . 176 62 . 54 . . Parts Recycled . | . . . . . . . . . . . . . . . . . . . . . . . . . . . . . . . . . . . . . Recycled Matter . | . . . . . . . . . . . . . . . . . . . . . . . . . . . . . . . . . . . . . Retrieved Matter . | . . . . . . . . . . . . . . . . . . . . . . . . . . . . . . . . . . . . . Retrieved Components 11 | . . . . . 9 . . . . . . . . . 2 . . . . . . . . . . . . . . . . . . . . . Parts Scanalyzed 11 | . . . . . 2 . . . 2 . . . . . . . . . . . 2 . . . . 1 . . . . 1 1 2 . . . Part Schematics Acquired 7 | . . . . . 2 . . . 2 . . . . . . . . . . . . . . . . . . . . . 1 1 1 . . . Parts Damaged 1 | . . . . . . . . . 1 . . . . . . . . . . . . . . . . . . . . . . . . . . . Bothacking | -11 -10 -10 -9 -9 -8 -8 -8 -8 -8 -7 -7 -7 -7 -7 -6 -6 -6 -6 -6 -6 -5 -5 -5 -5 -4 -4 -4 -4 -4 -3 -3 -3 -2 -2 -1 -1 ------------ Run | Jun Mat Min Mat Min Mat Gar Mat Gar Mat Fac Low Low Zio Dee Pro Fac Ext Cet Arc Hub Fac Upp Upp Zhi Pro Fac Upp Upp War Pro Res Tes Res Qua Acc Com Used RIF Installer . | . . . . . . . . . . . . . . . . . . . . . . . . . . . . . . . . . . . . . Robots Hacked 1 | . . . . . . . . . . 1 . . . . . . . . . . . . . . . . . . . . . . . . . . Non-combat 1 | . . . . . . . . . . 1 . . . . . . . . . . . . . . . . . . . . . . . . . . Combat . | . . . . . . . . . . . . . . . . . . . . . . . . . . . . . . . . . . . . . Robot Hacks Applied 1 | . . . . . . . . . . 1 . . . . . . . . . . . . . . . . . . . . . . . . . . find_chute 1 | . . . . . . . . . . 1 . . . . . . . . . . . . . . . . . . . . . . . . . . Relay Couplers Released 13 | . . . . . . 6 . . . . . . . . . . . . . . . . . . . . . . . . 4 3 . . . . Machine Destruction 6 | . . . . . . 3 . . . . . . . . . . . . . . . . . . . . . . . . . 3 . . . . Programmers 7 | . . . . . . 3 . . . . . . . . . . . . . . . . . . . . . . . . 4 . . . . . Fabnet Peak Effective % . | . . . . . . . . . . . . . . . . . . . . . . . . . . . . . . . . . . . . . Robots Rewired 36 | . . . . . . 2 . . . . . . . . 13 . 17 . . . . 2 . . 1 . . . . . . 1 . . . . Allies Hacked . | . . . . . . . . . . . . . . . . . . . . . . . . . . . . . . . . . . . . . Hacks Repelled . | . . . . . . . . . . . . . . . . . . . . . . . . . . . . . . . . . . . . . Allies | -11 -10 -10 -9 -9 -8 -8 -8 -8 -8 -7 -7 -7 -7 -7 -6 -6 -6 -6 -6 -6 -5 -5 -5 -5 -4 -4 -4 -4 -4 -3 -3 -3 -2 -2 -1 -1 -------- Run | Jun Mat Min Mat Min Mat Gar Mat Gar Mat Fac Low Low Zio Dee Pro Fac Ext Cet Arc Hub Fac Upp Upp Zhi Pro Fac Upp Upp War Pro Res Tes Res Qua Acc Com Total Allies 64 | . . 5 . 1 . 2 . . . . . . . . 13 1 31 5 . . . 2 . . 1 . . . . . 2 1 . . . . Largest Group 18 | . . 5 . 1 . 2 . . . . . . . . 6 6 18 17 13 10 . 2 2 1 1 . . . . . 1 1 . . . . Highest-Rated Group 848 | . . 82 . 31 . 62 . . . . . . . . 202 202 692 848 828 637 . 78 78 49 49 . . . . . 45 152 . . . . Highest-Rated Ally 159 | . . 31 . 31 . 31 . . . . . . . . 41 41 159 159 136 96 . 49 49 49 49 . . . . . 45 152 . . . . Total Orders 69 | . . 4 . . . . . . . . . . . . 2 9 7 . 2 2 11 3 2 . . 5 . . . . 6 8 3 2 3 . STAY 17 | . . 2 . . . . . . . . . . . . 1 4 3 . 1 1 1 2 1 . . . . . . . . 1 . . . . FOLLOW 13 | . . 2 . . . . . . . . . . . . 1 2 3 . 1 1 . 1 1 . . . . . . . . . 1 . . . AID 1 | . . . . . . . . . . . . . . . . 1 . . . . . . . . . . . . . . . . . . . . EXPLORE 9 | . . . . . . . . . . . . . . . . . . . . . 6 . . . . . . . . . . . 1 . 2 . RETURN 29 | . . . . . . . . . . . . . . . . 2 1 . . . 4 . . . . 5 . . . . 6 7 1 2 1 . Ally Attacks 472 | . . 11 . . . 16 . . . . . . . . 69 30 123 99 21 66 . 4 21 . 8 . . . . . . 4 . . . . Total Damage 11295 | . . 128 . . . 208 . . . . . . . . 1327 996 2429 2222 690 2112 . 59 595 . 211 . . . . . . 318 . . . . Kills 79 | . . 1 . . . 1 . . . . . . . . 10 6 19 21 4 9 . 1 3 . 2 . . . . . . 2 . . . . Allies Corrupted 5 | . . . . . . . . . . . . . . . . . . . . 5 . . . . . . . . . . . . . . . . Allies Melted 4 | . . . . . . . . . . . . . . . 1 . . . . . . . 1 . . . . . . . 1 . 1 . . . Turrets Deployed 1 | . . . . . . . . . . . . . . . 1 . . . . . . . . . . . . . . . . . . . . . Intel | -11 -10 -10 -9 -9 -8 -8 -8 -8 -8 -7 -7 -7 -7 -7 -6 -6 -6 -6 -6 -6 -5 -5 -5 -5 -4 -4 -4 -4 -4 -3 -3 -3 -2 -2 -1 -1 ------- Run | Jun Mat Min Mat Min Mat Gar Mat Gar Mat Fac Low Low Zio Dee Pro Fac Ext Cet Arc Hub Fac Upp Upp Zhi Pro Fac Upp Upp War Pro Res Tes Res Qua Acc Com Robot Analysis Total 7 | . . . 1 . . . 1 . . . . . . . . . . . . . . . . 4 . 1 . . . . . . . . . . Derelict Logs Recovered 21 | . . 2 . 2 . . . . . . 2 2 2 . 2 . . . . . . 2 2 . 2 . 2 1 . . . . . . . . Drone Launches 31 | . . . . . . . . . . . . . . . . 2 1 . . . 5 . . . . 5 . . . . 7 7 1 2 1 . Drone Recoveries 28 | . . . . . . . . . . . . . . . . 2 1 . . . 3 . . . . 5 . . . . 7 7 1 2 . . Decoded 0b10 Intel 72 | . . . . . . . . . . . . . . . . . . . . . . . . . . 72 . . . . . . . . . . Traps 16 | . . . . . . . . . . . . . . . . . . . . . . . . . . 16 . . . . . . . . . . Items 44 | . . . . . . . . . . . . . . . . . . . . . . . . . . 44 . . . . . . . . . . Machines 7 | . . . . . . . . . . . . . . . . . . . . . . . . . . 7 . . . . . . . . . . Patrols 2 | . . . . . . . . . . . . . . . . . . . . . . . . . . 2 . . . . . . . . . . Guards 3 | . . . . . . . . . . . . . . . . . . . . . . . . . . 3 . . . . . . . . . . Exploration | -11 -10 -10 -9 -9 -8 -8 -8 -8 -8 -7 -7 -7 -7 -7 -6 -6 -6 -6 -6 -6 -5 -5 -5 -5 -4 -4 -4 -4 -4 -3 -3 -3 -2 -2 -1 -1 ------------- Run | Jun Mat Min Mat Min Mat Gar Mat Gar Mat Fac Low Low Zio Dee Pro Fac Ext Cet Arc Hub Fac Upp Upp Zhi Pro Fac Upp Upp War Pro Res Tes Res Qua Acc Com Turns Passed 58126 | 141 1463 1208 877 1281 2078 1834 659 783 1019 671 1229 1779 1504 5122 2035 2052 1726 357 2183 541 1383 2242 1440 467 2734 2882 1563 1061 1677 1118 3967 2864 880 1656 1061 589 Spaces Moved 24346 | 57 754 711 338 531 750 692 274 322 397 351 757 1065 845 2048 705 853 623 156 198 223 602 934 757 159 1108 1134 661 512 679 583 1467 894 447 846 395 518 Core 340 | 3 . . . . . . . . . . . . . . . . . . . . . . . . . . . . . . . . . . . 337 Treads 6493 | 54 62 . . . 370 326 . . . . . 206 845 1030 . . . . . . . . . . . . . . . . 837 894 447 846 395 181 Legs 11957 | . 496 . . . . . . . . . . . . 944 705 853 623 156 198 223 602 934 757 159 1108 1134 661 512 679 583 630 . . . . . Wheels 5556 | . 196 711 338 531 380 366 274 322 397 351 757 859 . 74 . . . . . . . . . . . . . . . . . . . . . . Hover . | . . . . . . . . . . . . . . . . . . . . . . . . . . . . . . . . . . . . . Flight . | . . . . . . . . . . . . . . . . . . . . . . . . . . . . . . . . . . . . . Fastest Speed 50 | 50 95 130 145 150 150 165 195 195 160 160 145 145 160 145 189 189 183 183 183 183 183 183 183 183 183 183 183 183 176 172 152 237 161 161 157 50 Average Speed 183 | 154 148 144 145 150 201 215 195 196 184 165 150 148 171 210 196 189 195 196 185 183 183 187 183 200 185 188 187 189 201 173 206 239 166 161 188 88 Slowest Speed 330 | 160 190 145 150 150 240 300 330 315 205 190 160 240 240 240 260 189 260 235 235 183 183 235 183 235 235 235 235 235 226 219 305 245 248 170 256 180 Overloaded Moves . | . . . . . . . . . . . . . . . . . . . . . . . . . . . . . . . . . . . . . Propulsion Burnouts . | . . . . . . . . . . . . . . . . . . . . . . . . . . . . . . . . . . . . . Robots Hopped . | . . . . . . . . . . . . . . . . . . . . . . . . . . . . . . . . . . . . . Cave-ins Triggered 1 | . . . . . . . . . . . . . . . . . . . . . . . . . . . . . . . . . . . 1 . Exploration Rate (%) 63 | 4 99 97 29 98 40 59 24 55 45 12 94 95 85 89 84 17 85 75 94 31 26 97 88 61 93 33 87 84 83 87 52 90 31 67 22 28 Regions Visited 36 Branch Regions 22 Pre-discovered Areas 13 | . . . 2 . . . . . . 1 3 1 . . . . . . . . . 1 . 3 1 . 1 . . . . . . . . . Known Exits Taken 30 | . . 1 . . 1 . 1 . 1 1 1 1 1 1 1 1 1 1 1 1 1 1 1 1 1 1 1 1 1 1 1 1 1 1 1 . Unknown Exits Taken 4 | 1 1 . 1 1 . . . . . . . . . . . . . . . . . . . . . . . . . . . . . . . . Scrap Searched 37 | . . 1 . 1 . . . . . . 8 2 4 . 1 . . . . . . 5 1 . 5 . 4 1 . 4 . . . . . . Spaces Dug 840 | . . 52 2 39 . 9 . 2 5 6 15 11 2 . 31 41 7 1 . 3 29 35 6 . 30 68 17 1 12 26 79 37 10 74 128 62 Terrain Destroyed 2443 | . . 60 43 114 23 19 1 22 24 7 53 34 2 71 53 52 17 1 . 7 108 119 7 . 77 199 40 7 124 40 113 162 14 435 259 136 Melee 31 | . . . 2 . . 2 . . 5 6 3 4 2 . . . 2 1 . . . . 1 . . . . . 2 . 1 . . . . . Projectile 569 | . . 3 . 4 1 4 1 . 19 1 5 . . 9 25 50 15 . . 7 31 12 6 . 14 91 5 7 15 21 82 38 14 27 48 14 AOE 1839 | . . 57 41 110 22 13 . 22 . . 45 30 . 61 28 . . . . . 77 107 . . 63 108 35 . 107 19 30 123 . 408 211 122 Terrain Rammed . | . . . . . . . . . . . . . . . . . . . . . . . . . . . . . . . . . . . . . Walls Destroyed . | . . . . . . . . . . . . . . . . . . . . . . . . . . . . . . . . . . . . . Machines Disabled . | . . . . . . . . . . . . . . . . . . . . . . . . . . . . . . . . . . . . . Actions | -11 -10 -10 -9 -9 -8 -8 -8 -8 -8 -7 -7 -7 -7 -7 -6 -6 -6 -6 -6 -6 -5 -5 -5 -5 -4 -4 -4 -4 -4 -3 -3 -3 -2 -2 -1 -1 --------- Run | Jun Mat Min Mat Min Mat Gar Mat Gar Mat Fac Low Low Zio Dee Pro Fac Ext Cet Arc Hub Fac Upp Upp Zhi Pro Fac Upp Upp War Pro Res Tes Res Qua Acc Com Total 35529 | 81 926 824 634 947 1250 950 384 428 604 416 814 1209 883 2750 1250 1166 1013 201 2011 344 785 1377 801 304 1714 1620 978 594 906 672 2222 1503 574 1100 671 623 Wait 6151 | . 17 57 208 344 312 75 49 21 77 10 3 35 11 454 220 153 147 14 1789 84 70 353 20 117 503 161 242 70 117 48 169 93 30 38 33 7 Move 24307 | 56 753 710 337 530 750 689 274 319 396 350 756 1064 844 2047 704 852 622 155 197 222 601 933 756 158 1107 1133 660 511 678 582 1466 893 446 845 393 518 Hop . | . . . . . . . . . . . . . . . . . . . . . . . . . . . . . . . . . . . . . Pick Up 369 | 5 26 1 11 3 17 11 7 4 15 4 3 6 4 54 6 14 2 6 1 3 7 4 2 1 6 20 27 1 3 2 31 33 7 8 8 6 Fast Attach 210 | 6 5 1 4 8 6 7 4 3 9 4 2 2 1 11 . 3 2 2 3 6 2 4 1 8 5 5 6 . 12 . 26 18 10 2 11 11 Attach 233 | 1 3 2 4 1 4 11 5 10 6 4 1 3 . 7 2 7 . 2 2 1 3 4 4 . 6 4 5 2 1 2 45 33 1 5 28 14 Detach 292 | . 1 . . . . 13 5 8 8 1 . 2 . 6 6 7 12 4 5 3 6 16 3 5 12 15 10 2 8 1 54 41 2 4 21 11 Swap 681 | . 22 13 16 15 27 20 6 9 10 12 15 28 8 29 18 21 20 6 1 3 24 17 2 2 12 66 4 1 13 9 90 66 18 34 23 1 Drop 440 | . 15 3 7 6 31 11 11 7 15 9 6 7 5 45 3 13 3 5 6 9 5 5 3 8 10 23 12 1 10 1 52 40 17 9 11 16 Fire 2245 | 13 80 37 43 40 102 79 21 47 54 13 17 56 . 64 83 92 55 6 7 13 58 30 8 5 50 184 12 6 56 26 269 270 43 145 134 27 Melee 102 | . . . 4 . . 3 . . 13 9 11 6 10 14 . . 13 1 . . . 1 2 . 2 . . . 8 . 3 . . . 2 . Ram 9 | . . . . . . . 2 . 1 . . . . . . . . . . . . . . . . . . . . . . . . . . 6 Kick 36 | . 3 . . . . . . . . . . . . . . 4 6 . . . 9 . . . . 9 . . . . 5 . . . . . Crush 48 | . 1 . . . 1 . . . . . . . . 18 . . . . . . . . . . . . . . . . 11 4 . 4 6 3 Escape Stasis 24 | . . . . . . 14 . . . . . . . . . . . . . . . . . . . . . . . . . . . 6 1 3 Rewire 382 | . . . . . . 17 . . . . . . . 1 208 . 131 . . . . 10 . . 1 . . . . 1 1 12 . . . . Trap . | . . . . . . . . . . . . . . . . . . . . . . . . . . . . . . . . . . . . . Miscellaneous . | . . . . . . . . . . . . . . . . . . . . . . . . . . . . . . . . . . . . . Route ------- -11/Junkyard -10/Materials (discovered 4 exits: *Mat x3 / [*Min]) -10/Mines (discovered 3 exits: *Mat x2 / [*Exi]) -9/Materials -9/Mines (discovered 3 exits: *Mat x2 / *Zio) -8/Materials (discovered 2 exits: *Fac / Gar) -8/Garrison (discovered 3 exits: *Mat x3) -8/Materials -8/Garrison (discovered 3 exits: *Mat x3) -8/Materials (discovered 3 exits: *Fac x3) -7/Factory (discovered 2 exits: Sto / *Low) -7/Lower Caves -7/Lower Caves (discovered 2 exits: *Fac / *Zio) -7/Zion (discovered 2 exits: *Dee / [*Pro]) -7/Deep Caves -6/Proximity Caves -6/Factory (discovered 8 exits: *Fac x4 / Low x2 / *Ext x2) -6/Extension (discovered 2 exits: *Fac / *Cet) -6/Cetus (discovered 2 exits: *Fac / *Arc) -6/Archives (discovered 3 exits: *Fac / *Hub x2) -6/Hub_04(d) (discovered 4 exits: *Fac x4) -5/Factory (discovered 5 exits: *Fac x4 / *Upp) -5/Upper Caves -5/Upper Caves (discovered 2 exits: *Fac / *Zhi) -5/Zhirov -4/Proximity Caves -4/Factory (discovered 2 exits: *Upp x2) -4/Upper Caves -4/Upper Caves (discovered 2 exits: *Res / *War) -4/Warlord -3/Proximity Caves -3/Research (discovered 4 exits: *Res x3 / *Tes) -3/Testing -2/Research (discovered 2 exits: *Acc / *Qua) -2/Quarantine -1/Access (discovered 2 exits: Sur / *Com) -1/Command (discovered 1 exit: *Sur) History --------- Turn | Location | Event 26 | -11/Junkyard | Discovered new exit (range 16) 142 | -11/Junkyard | Entered Materials 281 | -10/Materials | Met 8R-AWN 287 | -10/Materials | Attacked by 8R-AWN 310 | -10/Materials | Build established: Mutant 434 | -10/Materials | Lost 4 parts (2n2w) 456 | -10/Materials | Destroyed 8R-AWN 463 | -10/Materials | Found Prototype Ballistic Gun 497 | -10/Materials | Found Prototype Device 497 | -10/Materials | Identified AS-neutralizer No. 17b 618 | -10/Materials | Core integrity fell below 50% 677 | -10/Materials | Discovered new exit (range 14) 768 | -10/Materials | Discovered new exit (range 8) 975 | -10/Materials | Discovered new exit (range 11) 1583 | -10/Materials | Discovered new exit (range 12) 1605 | -10/Materials | Entered Mines 1688 | -10/Mines | Learned Materials non-interactive machine intel 1737 | -10/Mines | Identified 8R-AWN's Boregun 1792 | -10/Mines | Discovered new exit (range 12) 1900 | -10/Mines | Identified exit to Materials 1992 | -10/Mines | Assisted by bots powering up and referring to "LRC-V3" 2058 | -10/Mines | Received a Rocket Launcher from a helpful Derelict 2156 | -10/Mines | Assembled infested the area 2710 | -10/Mines | Discovered new exit (range 10) 2813 | -10/Mines | Entered Materials 2813 | -9/Materials | Evolved 2 slots: Utility x2 2814 | -9/Materials | Loaded intel: 53 non-interactive machine locations 3659 | -9/Materials | Discovered new exit (range 13) 3690 | -9/Materials | Entered Mines 3935 | -9/Mines | Discovered new exit (range 4) 3988 | -9/Mines | A Derelict revealed a hidden shortcut to a safe place 4028 | -9/Mines | A weapon hastily lodged in a ceiling crevice suddenly fell to the ground 4076 | -9/Mines | Learned Materials emergency access door positions 4079 | -9/Mines | Discovered new exit (range 5) 4622 | -9/Mines | Received a Mining Laser from a helpful Derelict 4971 | -9/Mines | Entered Materials 4971 | -8/Materials | Evolved 2 slots: Power x1, Utility x1 5725 | -8/Materials | Build established: Scavenger-Mutant 6337 | -8/Materials | Garrison activated, responded to threat 6448 | -8/Materials | Discovered new exit (range 5) 7049 | -8/Materials | Identified exit to Garrison 7049 | -8/Materials | Entered Garrison 7114 | -8/Garrison | Triggered checkpoint 7201 | -8/Garrison | Garrison Relay disabled 7271 | -8/Garrison | Triggered checkpoint 7274 | -8/Garrison | Triggered checkpoint 7312 | -8/Garrison | Triggered checkpoint 7661 | -8/Garrison | Build established: Hauler-Mutant 7673 | -8/Garrison | Discovered new exit (range 10) 7736 | -8/Garrison | Triggered checkpoint 8000 | -8/Garrison | Triggered checkpoint 8051 | -8/Garrison | Discovered new exit (range 23) 8051 | -8/Garrison | Discovered new exit (range 62) 8051 | -8/Garrison | Discovered new exit (range 69) 8462 | -8/Garrison | Attempted to access garrison exit controls, blocked by remote lockdown 8707 | -8/Garrison | Attempted to access garrison exit controls, blocked by remote lockdown 8883 | -8/Garrison | Entered Materials 9542 | -8/Materials | Identified exit to Garrison 9542 | -8/Materials | Entered Garrison 9682 | -8/Garrison | Triggered checkpoint 9771 | -8/Garrison | Destroyed 7 combat bots 9808 | -8/Garrison | Triggered checkpoint 9873 | -8/Garrison | Discovered new exit (range 14) 9898 | -8/Garrison | Attempted to access garrison exit controls, blocked by remote lockdown 9972 | -8/Garrison | Triggered checkpoint 9984 | -8/Garrison | Triggered checkpoint 10166 | -8/Garrison | Discovered new exit (range 10) 10184 | -8/Garrison | Attempted to access garrison exit controls, blocked by remote lockdown 10304 | -8/Garrison | Discovered new exit (range 8) 10325 | -8/Garrison | Entered Materials 10373 | -8/Materials | Repaired Hvy. Armor Plating? 10415 | -8/Materials | Repaired Arm. Wheel 10700 | -8/Materials | Identified exit to Factory 10765 | -8/Materials | Core integrity fell below 50% 11344 | -8/Materials | Entered Factory 11344 | -7/Factory | Evolved 2 slots: Propulsion x1, Utility x1 11345 | -7/Factory | Identified exit to Storage 11509 | -7/Factory | Discovered new exit (range 3) 11511 | -7/Factory | Identified exit to Lower Caves 11762 | -7/Factory | Build established: Mutant 12015 | -7/Factory | Entered Lower Caves 12051 | -7/Lower Caves | Met a Warlord Commander 12052 | -7/Lower Caves | Learned location of Warlord (-4) 12058 | -7/Lower Caves | Found Encrypted Comm Array 12364 | -7/Lower Caves | Learned location of Zion (-7) 12529 | -7/Lower Caves | Attracted the attention of an 0b10 checkpoint 12714 | -7/Lower Caves | Build established: Assassin 12991 | -7/Lower Caves | Discovered new exit (range 7) 12999 | -7/Lower Caves | Identified exit to Lower Caves 13101 | -7/Lower Caves | Build established: Derelict-Assassin 13244 | -7/Lower Caves | Entered another Lower Caves area 13301 | -7/Lower Caves | Discovered new exit (range 7) 13308 | -7/Lower Caves | Identified exit to Factory 13498 | -7/Lower Caves | Spotted B-75 Beast 13499 | -7/Lower Caves | Learned Factory garrison access intel 13729 | -7/Lower Caves | Destroyed B-75 Beast 14026 | -7/Lower Caves | Build established: Derelict-Skirmisher 14046 | -7/Lower Caves | Discovered new exit (range 11) 14410 | -7/Lower Caves | Identified exit to Zion 14649 | -7/Lower Caves | Destroyed 11 combat bots 14653 | -7/Lower Caves | Attracted the attention of an 0b10 base 14924 | -7/Lower Caves | Learned Armory terminal intel 14924 | -7/Lower Caves | Learned Extension terminal intel 14924 | -7/Lower Caves | Learned Factory security intel 14924 | -7/Lower Caves | Learned Extension stockpile data 14924 | -7/Lower Caves | Learned Factory emergency access door positions 14924 | -7/Lower Caves | Learned Extension trap positions 14924 | -7/Lower Caves | Learned 6 Proximity Caves zone layouts 14924 | -7/Lower Caves | Learned 6 Upper Caves zone layouts 15023 | -7/Lower Caves | Entered Zion 15077 | -7/Zion | System corruption cleaned by Quarantine Array 15198 | -7/Zion | Discovered new exit (range 9) 15209 | -7/Zion | Given the Hacking Drone Bay 15210 | -7/Zion | Found Prototype Device 15287 | -7/Zion | Build established: Derelict-Assassin 15539 | -7/Zion | Learned Factory emergency access door positions 15606 | -7/Zion | Discovered new exit (range 5) 15608 | -7/Zion | Saw the warning signs outside the Deep Caves entrance 15611 | -7/Zion | Identified exit to Deep Caves 15869 | -7/Zion | Learned location of 2 exits from Factory 15988 | -7/Zion | Learned Factory emergency access door positions 16296 | -7/Zion | Visited the Megawrench Repair Shop 16296 | -7/Zion | Megawrench repaired 11 parts 16518 | -7/Zion | Build established: Derelict-Mutant 16527 | -7/Zion | Entered Deep Caves 17017 | -7/Deep Caves | Attacked by Z-Imprinter 17028 | -7/Deep Caves | Destroyed Z-Imprinter 17068 | -7/Deep Caves | Found Prototype Protection 17068 | -7/Deep Caves | Identified Zio. Weapon Casing 17314 | -7/Deep Caves | Z-Facility disabled 17614 | -7/Deep Caves | Core integrity fell below 50% 17944 | -7/Deep Caves | Discovered new exit (range 7) 17946 | -7/Deep Caves | Build established: Mutant 17958 | -7/Deep Caves | Identified exit to Proximity Caves 18297 | -7/Deep Caves | Spotted as-93748 18380 | -7/Deep Caves | Destroyed as-93748 18408 | -7/Deep Caves | Lost 4 parts (4u) 18625 | -7/Deep Caves | Found Prototype Protection 18633 | -7/Deep Caves | Found Prototype Protection 18633 | -7/Deep Caves | Identified Zio. Heavy Carapace (x2) 18740 | -7/Deep Caves | Found Zio. Heavy Carapace 19015 | -7/Deep Caves | Triggered Deep Caves wall 19015 | -7/Deep Caves | Spotted AS-51451 19016 | -7/Deep Caves | Spotted AS-01523 19020 | -7/Deep Caves | Destroyed AS-01523 19033 | -7/Deep Caves | Spotted as-65256 19052 | -7/Deep Caves | Destroyed AS-51451 19151 | -7/Deep Caves | Destroyed as-65256 19187 | -7/Deep Caves | Exposed GOLEM chamber 19191 | -7/Deep Caves | Found GOLEM Unit 19645 | -7/Deep Caves | Build established: Golem 19669 | -7/Deep Caves | Found GOLEM Unit 20393 | -7/Deep Caves | Identified Hacking Drone Bay 20574 | -7/Deep Caves | Found Deploy-a-Sentry 21649 | -7/Deep Caves | Entered Proximity Caves 21778 | -6/Proximity Caves | Learned Factory emergency access door positions 21895 | -6/Proximity Caves | Learned 4 Factory zone layouts 22202 | -6/Proximity Caves | DAS Turret deployed 22206 | -6/Proximity Caves | Attracted the attention of an 0b10 outpost 22286 | -6/Proximity Caves | Core integrity fell below 20% 22312 | -6/Proximity Caves | Destroyed 7 combat bots 22564 | -6/Proximity Caves | Snuck into a huge 0b10 base via the rear entrance 23085 | -6/Proximity Caves | Build established: Commander-Golem 23149 | -6/Proximity Caves | Fabricated Adv. Myomer Leg (x1) 23684 | -6/Proximity Caves | Entered Factory 23684 | -6/Factory | Accompanied by 6 allies 23684 | -6/Factory | Evolved 2 slots: Utility x2 23685 | -6/Factory | Identified exit to Extension 23685 | -6/Factory | Identified exit to Lower Caves 23689 | -6/Factory | Loaded intel: 4 garrison access locations 23855 | -6/Factory | Discovered exit to Extension (range 13) 24258 | -6/Factory | Discovered new exit (range 16) 24292 | -6/Factory | Identified exit to Factory 24354 | -6/Factory | Build established: Golem 24455 | -6/Factory | Fabricated M-13 Machinist? 24569 | -6/Factory | Fabricated Hvy. Missile Launcher? 24656 | -6/Factory | Fabricated Powered Armor? 25396 | -6/Factory | Repaired Powered Armor 25736 | -6/Factory | Entered Extension 25737 | -6/Extension | Loaded intel: 20 trap records 25739 | -6/Extension | Loaded intel: 14 terminal locations 26353 | -6/Extension | Rescued a captive Derelict 26699 | -6/Extension | Rescued a captive Derelict 26742 | -6/Extension | Build established: Commander-Golem 26917 | -6/Extension | Spotted B-75 Beast 26940 | -6/Extension | Allies destroyed B-75 Beast 26944 | -6/Extension | Spotted B-75 Beast 26966 | -6/Extension | Allies destroyed B-75 Beast 27042 | -6/Extension | Rescued a captive Derelict 27053 | -6/Extension | Rescued a captive Derelict 27075 | -6/Extension | Rescued a captive Derelict 27098 | -6/Extension | Rescued a captive Derelict 27099 | -6/Extension | Rescued a captive Derelict 27157 | -6/Extension | Rescued a captive Derelict 27224 | -6/Extension | Rescued a captive Derelict 27304 | -6/Extension | Rescued a captive Derelict 27304 | -6/Extension | Rescued a captive Derelict 27312 | -6/Extension | Rescued a captive Derelict 27313 | -6/Extension | Rescued a captive Derelict 27344 | -6/Extension | Rescued A7 27412 | -6/Extension | Discovered exit to Factory (range 10) 27414 | -6/Extension | Discovered new exit (range 6) 27423 | -6/Extension | Identified exit to Cetus 27462 | -6/Extension | Entered Cetus 27462 | -6/Cetus | Accompanied by 17 allies (A7) 27467 | -6/Cetus | Acquired a Cetus Manufacturing Module code from A7 27483 | -6/Cetus | Spotted Cetus Guard 27483 | -6/Cetus | Spotted Cetus Guard 27483 | -6/Cetus | Spotted Cetus Guard 27485 | -6/Cetus | Spotted Cetus Guard 27491 | -6/Cetus | Allies destroyed Cetus Guard 27496 | -6/Cetus | Allies destroyed Cetus Guard 27498 | -6/Cetus | Allies destroyed Cetus Guard 27499 | -6/Cetus | Allies destroyed Cetus Guard 27591 | -6/Cetus | Started Cetus Manufacturing Module 27616 | -6/Cetus | Manufactured an Enhanced Grunt 27632 | -6/Cetus | Discovered new exit (range 21) 27641 | -6/Cetus | Manufactured an Enhanced Grunt 27666 | -6/Cetus | Manufactured an Enhanced Grunt 27670 | -6/Cetus | Spotted Cetus Guard 27672 | -6/Cetus | Spotted Cetus Guard 27672 | -6/Cetus | Spotted Cetus Guard 27678 | -6/Cetus | Discovered exit to Factory (range 21) 27678 | -6/Cetus | Spotted Cetus Guard 27679 | -6/Cetus | Allies destroyed Cetus Guard 27691 | -6/Cetus | Manufactured an Enhanced Grunt 27691 | -6/Cetus | Allies destroyed Cetus Guard 27692 | -6/Cetus | Destroyed Cetus Guard 27693 | -6/Cetus | Allies destroyed Cetus Guard 27704 | -6/Cetus | Met Revision 17 27716 | -6/Cetus | Manufactured an Enhanced Grunt 27817 | -6/Cetus | Identified exit to Archives 27819 | -6/Cetus | Entered Archives 27819 | -6/Archives | Accompanied by 13 allies (A7) 27885 | -6/Archives | Discovered new exit (range 21) 27987 | -6/Archives | Discovered new exit (range 19) 27992 | -6/Archives | Discovered exit to Factory (range 21) 28086 | -6/Archives | Identified exit to Hub_04(d) 30002 | -6/Archives | Entered Hub_04(d) 30002 | -6/Hub_04(d) | Accompanied by 10 allies 30241 | -6/Hub_04(d) | Network Hub disabled 30298 | -6/Hub_04(d) | Spotted Lightning 30300 | -6/Hub_04(d) | Spotted Lightning 30302 | -6/Hub_04(d) | Allies destroyed Lightning 30305 | -6/Hub_04(d) | Found Prototype Processor 30310 | -6/Hub_04(d) | Found Prototype Device 30310 | -6/Hub_04(d) | Identified Exp. Phase Shifter 30320 | -6/Hub_04(d) | Allies destroyed Lightning 30327 | -6/Hub_04(d) | Spotted Lightning 30334 | -6/Hub_04(d) | Allies destroyed Lightning 30348 | -6/Hub_04(d) | Found Prototype Device 30348 | -6/Hub_04(d) | Identified Exp. EM Disruption Field 30543 | -6/Hub_04(d) | Entered Factory 30543 | -5/Factory | Evolved 2 slots: Utility x2 30618 | -5/Factory | Build established: Golem 31103 | -5/Factory | Discovered new exit (range 52) 31420 | -5/Factory | Identified exit to Factory 31673 | -5/Factory | Repaired Imp. Heavy Armor Plating 31743 | -5/Factory | First assault squad dispatched 31768 | -5/Factory | Repaired Powered Armor 31782 | -5/Factory | Repaired Centrium Medium Armor Plating? 31923 | -5/Factory | Identified exit to Upper Caves 31926 | -5/Factory | Entered Upper Caves 31927 | -5/Upper Caves | Identified exit to Upper Caves 32445 | -5/Upper Caves | Attracted the attention of an 0b10 outpost 33541 | -5/Upper Caves | Found Alien Artifact 33716 | -5/Upper Caves | Learned Factory garrison access intel 34168 | -5/Upper Caves | Entered another Upper Caves area 34168 | -5/Upper Caves | Accompanied by 2 allies 34213 | -5/Upper Caves | Discovered exit to Factory (range 18) 34410 | -5/Upper Caves | Learned Factory emergency access door positions 34414 | -5/Upper Caves | Learned Factory non-interactive machine intel 34604 | -5/Upper Caves | Attracted the attention of an 0b10 checkpoint 34829 | -5/Upper Caves | Discovered new exit (range 8) 35604 | -5/Upper Caves | Identified exit to Zhirov 35608 | -5/Upper Caves | Entered Zhirov 35608 | -5/Zhirov | Accompanied by 1 ally 35608 | -5/Zhirov | Discovered new exit (range 3) 35641 | -5/Zhirov | Met Zhirov 35682 | -5/Zhirov | Learned location of Quarantine (-2) 35682 | -5/Zhirov | Learned location of Testing (-3) 35682 | -5/Zhirov | Learned location of Command (-1) 35693 | -5/Zhirov | Zhirov requested help retrieving the SGEMP Prototype 35728 | -5/Zhirov | Found Alien Artifact 35728 | -5/Zhirov | Identified Integrated Dissipator 35728 | -5/Zhirov | Installed Integrated Dissipator, increased core heat dissipation (+20) 35863 | -5/Zhirov | Found Alien Artifact 35949 | -5/Zhirov | Identified exit to Proximity Caves 36075 | -5/Zhirov | Entered Proximity Caves 36075 | -4/Proximity Caves | Accompanied by 1 ally 36639 | -4/Proximity Caves | Attracted the attention of an 0b10 outpost 37710 | -4/Proximity Caves | Discovered exit to Factory (range 11) 37930 | -4/Proximity Caves | Learned 4 Research zone layouts 38076 | -4/Proximity Caves | Spotted B-86 Titan 38809 | -4/Proximity Caves | Entered Factory 38809 | -4/Factory | Evolved 2 slots: Utility x2 38811 | -4/Factory | Loaded intel: 190 non-interactive machine locations 38812 | -4/Factory | Loaded intel: 4 garrison access locations 38989 | -4/Factory | Identified exit to Upper Caves 39882 | -4/Factory | Found Prototype Processor 40787 | -4/Factory | Identified Exp. Targeting Computer 40809 | -4/Factory | First assault squad dispatched 40951 | -4/Factory | Identified Exp. Melee Analysis Suite 40976 | -4/Factory | Fabricated Adv. Force Field? 41515 | -4/Factory | Build established: Scavenger-Golem 41528 | -4/Factory | Spotted B-86 Titan 41691 | -4/Factory | Entered Upper Caves 41935 | -4/Upper Caves | Learned location of Armory (-3) 41999 | -4/Upper Caves | Learned Research trap positions 42633 | -4/Upper Caves | Attracted the attention of an 0b10 checkpoint 42831 | -4/Upper Caves | Found Alien Artifact 42831 | -4/Upper Caves | Identified Core Expander 42831 | -4/Upper Caves | Installed Core Expander, added new Utility slot 43213 | -4/Upper Caves | Discovered new exit (range 12) 43235 | -4/Upper Caves | Identified exit to Upper Caves 43254 | -4/Upper Caves | Entered another Upper Caves area 43317 | -4/Upper Caves | Discovered new exit (range 12) 43335 | -4/Upper Caves | Identified exit to Research 43980 | -4/Upper Caves | Discovered new exit (range 10) 44006 | -4/Upper Caves | Learned 4 Research zone layouts 44240 | -4/Upper Caves | Identified exit to Warlord 44315 | -4/Upper Caves | Entered Warlord 44673 | -4/Warlord | Learned Armory emergency access door positions 44673 | -4/Warlord | Learned Testing emergency access door positions 44675 | -4/Warlord | Learned 4 Quarantine zone layouts 44677 | -4/Warlord | Learned Factory terminal intel 44707 | -4/Warlord | Found Prototype Special Weapon 44707 | -4/Warlord | Identified RU-N14's Throwing Claymores v3 45013 | -4/Warlord | Build established: Golem 45447 | -4/Warlord | Met Warlord 45472 | -4/Warlord | Warlord's base attacked by MAIN.C 45479 | -4/Warlord | Found Prototype Reactor 45479 | -4/Warlord | Identified Vortex Chain Reactor 45493 | -4/Warlord | Found Prototype Hackware 45502 | -4/Warlord | Found Prototype Device 45502 | -4/Warlord | Identified Thermal Barrier 45505 | -4/Warlord | Found Prototype Processor 45505 | -4/Warlord | Identified Exp. Armor Integrity Analyzer 45702 | -4/Warlord | P-70 Sage assimilated allied NP-7AX(g) 45765 | -4/Warlord | Build established: Mutant 45822 | -4/Warlord | Warlord forces counterattacked 45827 | -4/Warlord | Spotted Executioner 45847 | -4/Warlord | Destroyed Executioner 45882 | -4/Warlord | Spotted Executioner 45889 | -4/Warlord | Spotted Executioner 45896 | -4/Warlord | Destroyed Executioner 45899 | -4/Warlord | Destroyed Executioner 45906 | -4/Warlord | Found Prototype Processor 45906 | -4/Warlord | Identified Exp. Core Analyzer 45919 | -4/Warlord | Found Prototype Device 45919 | -4/Warlord | Identified Adv. Kinecellerator 45920 | -4/Warlord | Destroyed 10 combat bots 45938 | -4/Warlord | Found Quantum Capacitor 45966 | -4/Warlord | Discovered new exit (range 14) 45979 | -4/Warlord | Spotted Striker 45979 | -4/Warlord | Spotted Executioner 45990 | -4/Warlord | Identified exit to Proximity Caves 45992 | -4/Warlord | Entered Proximity Caves 46368 | -3/Proximity Caves | Build established: Scavenger-Mutant 46526 | -3/Proximity Caves | Spotted B-86 Titan 46558 | -3/Proximity Caves | Attracted the attention of an 0b10 checkpoint 46930 | -3/Proximity Caves | Discovered exit to Research (range 11) 47110 | -3/Proximity Caves | Entered Research 47110 | -3/Research | Evolved 2 slots: Power x1, Propulsion x1 47111 | -3/Research | Identified exit to Research 47112 | -3/Research | Loaded intel: 74 trap records 47178 | -3/Research | Identified System Mapper 47178 | -3/Research | Identified Dimensional Node Initializer 47178 | -3/Research | Identified Transdimensional Reconstructor 47190 | -3/Research | Build established: Scavenger-Assassin 47692 | -3/Research | Found Quantum Capacitor 47719 | -3/Research | Spotted B-86 Titan 47988 | -3/Research | Found Gamma Bomb Array 48180 | -3/Research | Found Adv. Powered Armor 48269 | -3/Research | Fabricated Biometal Heavy Treads? 49092 | -3/Research | P-80 Master assimilated allied Director 8a 49110 | -3/Research | First assault squad dispatched 49205 | -3/Research | Destroyed 10 combat bots 49450 | -3/Research | Build established: Assassin 49837 | -3/Research | Build established: Mutant 50013 | -3/Research | Found Quantum Capacitor 50269 | -3/Research | Spotted B-86 Titan 50431 | -3/Research | Repaired Adv. Powered Armor 50541 | -3/Research | Repaired Exp. EM Disruption Field? 50839 | -3/Research | Destroyed 9 combat bots 51063 | -3/Research | Discovered new exit (range 5) 51075 | -3/Research | Identified exit to Testing 51077 | -3/Research | Entered Testing 51185 | -3/Testing | Found Exp. Targeting Computer 51196 | -3/Testing | Repaired Lyr. Heavy Armor Plating 51327 | -3/Testing | First assault squad dispatched 51355 | -3/Testing | Garrison activated, responded to threat 51721 | -3/Testing | Discovered exit to Research (range 22) 51820 | -3/Testing | Found Prototype Processor 51833 | -3/Testing | Identified Spectral Analyzer 51893 | -3/Testing | Destroyed 7 combat bots 52100 | -3/Testing | Spotted PH-B2FKNK5XMK 52118 | -3/Testing | Rewired PH-B2FKNK5XMK 52188 | -3/Testing | Destroyed PH-B2FKNK5XMK 52199 | -3/Testing | Found Prototype Reactor 52199 | -3/Testing | Identified Zero-point Reactor 52343 | -3/Testing | Repaired Adv. Force Field 52548 | -3/Testing | System corruption reached 10% 52577 | -3/Testing | Found Prototype Device 52583 | -3/Testing | Identified Exp. Shield Generator 52689 | -3/Testing | Build established: Assassin 52741 | -3/Testing | Found Prototype Energy Cannon 52741 | -3/Testing | Identified Cld. Nova Cannon 52795 | -3/Testing | Found Prototype Protection 52795 | -3/Testing | Identified Centrium Heavy Armor Plating 52850 | -3/Testing | Spotted Striker 52852 | -3/Testing | Found Antimissile System 52990 | -3/Testing | Destroyed 12 combat bots 52996 | -3/Testing | Build established: Mutant 53074 | -3/Testing | Scanned by Researcher 53130 | -3/Testing | Found System Mapper 53189 | -3/Testing | Destroyed 8 combat bots 53372 | -3/Testing | Destroyed 14 combat bots 53432 | -3/Testing | Build established: Assassin 53666 | -3/Testing | Destroyed 8 combat bots 53746 | -3/Testing | Found Prototype Energy Cannon 53871 | -3/Testing | High security lockdown imminent 53892 | -3/Testing | Destroyed 9 combat bots 53941 | -3/Testing | Entered Research 53941 | -2/Research | Warlord forces began assault on 0b10 53941 | -2/Research | Evolved 2 slots: Propulsion x2 53942 | -2/Research | Identified exit to Quarantine 53966 | -2/Research | Distinguished unit "Vikings" dispatched to help 54000 | -2/Research | Identified Imp. Potential Cannon 54051 | -2/Research | Research machine network offline 54312 | -2/Research | Discovered new exit (range 16) 54336 | -2/Research | Met up with Warlord 54487 | -2/Research | Spotted Striker 54496 | -2/Research | Spotted Striker 54498 | -2/Research | Spotted Striker 54508 | -2/Research | Destroyed Striker 54513 | -2/Research | Destroyed Striker 54525 | -2/Research | Spotted Striker 54528 | -2/Research | Spotted Striker 54529 | -2/Research | Spotted Striker 54531 | -2/Research | Spotted Striker 54534 | -2/Research | Destroyed Striker 54540 | -2/Research | Destroyed Striker 54668 | -2/Research | Build established: Hacker-Mutant 54821 | -2/Research | Entered Quarantine 55071 | -2/Quarantine | First assault squad dispatched 55133 | -2/Quarantine | Cryocooling Duct disabled 55148 | -2/Quarantine | Ambient heat levels rising (+20) 55148 | -2/Quarantine | Non-combat units ordered to evacuate 55371 | -2/Quarantine | Repaired Centrium Heavy Armor Plating? 55489 | -2/Quarantine | Discovered new exit (range 16) 55531 | -2/Quarantine | Garrison activated, responded to threat 55677 | -2/Quarantine | Found Alien Artifact 55677 | -2/Quarantine | Identified Phase Redirector 55914 | -2/Quarantine | Found Prototype Hackware 55922 | -2/Quarantine | Found Prototype Device 55952 | -2/Quarantine | Identified Exp. Actuator Array 55952 | -2/Quarantine | Identified Exp. System Shield 55995 | -2/Quarantine | Found Alien Impact Weapon 56180 | -2/Quarantine | High security lockdown imminent 56232 | -2/Quarantine | Destroyed 13 combat bots 56260 | -2/Quarantine | High security lockdown engaged 56267 | -2/Quarantine | Found Centrium Heavy Armor Plating 56351 | -2/Quarantine | Destroyed 17 combat bots 56396 | -2/Quarantine | Spotted Investigator 56399 | -2/Quarantine | Destroyed Investigator 56428 | -2/Quarantine | Destroyed 22 combat bots 56475 | -2/Quarantine | Identified exit to Access 56477 | -2/Quarantine | Entered Access 56477 | -1/Access | Evolved 2 slots: Power x1, Utility x1 56776 | -1/Access | First assault squad dispatched 56784 | -1/Access | Build established: Generator-Mutant 57240 | -1/Access | Identified exit to Command 57254 | -1/Access | Identified exit to Surface 57381 | -1/Access | Destroyed 11 combat bots 57389 | -1/Access | Identified Core Stripper 57409 | -1/Access | Lost 4 parts (1p2u1w) 57475 | -1/Access | Crushed by falling debris 57496 | -1/Access | System corruption reached 10% 57538 | -1/Access | Entered Command 57551 | -1/Command | Lost 8 parts (2p1n5u) 57788 | -1/Command | First assault squad dispatched 57848 | -1/Command | Found Antimissile System 57904 | -1/Command | High security lockdown imminent 57984 | -1/Command | High security lockdown engaged 58112 | -1/Command | Spotted Alpha 7 58112 | -1/Command | Spotted Alpha 7 58112 | -1/Command | Spotted Striker 58112 | -1/Command | Spotted Striker 58112 | -1/Command | Spotted Executioner 58112 | -1/Command | Spotted Executioner 58112 | -1/Command | Spotted Executioner 58112 | -1/Command | Spotted Executioner 58112 | -1/Command | Spotted B-99 Colossus 58119 | -1/Command | Spotted B-99 Colossus 58121 | -1/Command | Core integrity fell below 50% 58123 | -1/Command | Discovered exit to Surface (range 9) 58124 | -1/Command | Core integrity fell below 20% 58127 | -1/Command | Destroyed by Alpha 7 with Multirail Last Messages --------------- 58123_ Penetrated by Slug. 58123_ Slug penetrates Wall. 58124_ System corrupted: Heat flow error (+227). 58124_ Slug penetrates Executioner. 58124_ Penetrated by Slug. 58124_ Slug penetrates B-99 Colossus. 58124_ Penetrated by Slug. 58124_ Slug penetrates B-99 Colossus. 58125_ Knocked back. 58125_ Triggered Stasis Trap. 58125_ A bubble of rippling energy engulfs the area. 58125_ Field strength at 94. 58125_ Field strength at 88. 58125_ Penetrated by Slug. 58125_ Slug penetrates Wall. 58126_ Field strength at 73. 58127_ Graphene Brace destroyed. 58127_ Slug penetrates Wall. 58127_ Slug penetrates Reinforced Barrier. 58127_ Penetrated by Slug. Map ----- +----------------------------------------------------+ | ?????????????????????????????????????????????????? | | ?????????????????????????????????????????????????? | | ?????????????????????????????????????????????????? | | ?????????????????????????????????????????????????? | | ?????????????????????????????????????????????????? | | ?????????????????????????????????????????????????? | | ?????????????????????????????????????????????????? | | ?????????????????????????????????????????????????? | | ?????????????????????????????????????????????????? | | ???????? ????????????????????????????????????????? | | ?????? ???????????????????????????????????????? | | ????? ???????????????????????????????????????? | | ?????# ???????????????????????????????????????? | | ?????# ???????????????????????????????????????? | | ?????# #??????????????????????????????????????? | | ?????# #??????????????????##??????????????????? | | ?????# #???????????#######;######?????????????? | | ?????# #??????????## #?????????????? | | ?????# #???########;BB #?????????????? | | ?????# #?### ; # # ;BB #?????+???????? | | ?????# ### E ^ #????? ???????? | | ?????# / ^^ 7 ^ #????# ???????? | | ?????# / ^ "< #????# ???????? | | ?????# / ^ %^ ^ "" #????# ???????? | | ?????# %/%% E EK ^ #????# ???????? | | ?????# ###!%/ 7KE% @ #????# ???????? | | ?????# #?###%; # # ;BB ^ #????# ???????? | | ?????# #???#######;#BB #????# ???????? | | ?????# #?????????### #????# #??????? | | ?????# #???????????###;##########????# ######## | | ###### #?????????????###?????????????# | | #?????????????????????????????# | | #?????????????????????????????# | | #?????????????????????????????# | | [/ #??######?????????????????????# "" | | [/ #??# #????????????????###### """" | | [! #??# #????????????????# # """ | | #??# #????????????????# # | | #??# #????????????????# # | | #### #????????????????# # | | #### ## #????????????????# | | #???# #????????????????# # ### | | #????????????????# # ## | | # =% #????????????????# # ## | | " *==% #????????????????# # ## # | | "" %% ######????????????????#+#### ## # | | "" ????????????????????# #??# ## # | | " * ??????????????????# #??# ## # | | ????????????????# #### ## # | | = #????########### # ## ## # | +----------------------------------------------------+ Best States ------------- Heat Dissipation 108 Energy Generation 95 Energy Capacity 2240 Matter Stores 300 Matter Capacity 300 Sight Range 24 Robot Scan Range 19 Terrain Scan Range 24 Terrain Scan Density 210 Jamming Range 16 Cloak Strength 3 Power Amplification 20 Additional Mass Support 20 Armor Coverage 3200 Resistance: KI 20 Resistance: TH 15 Resistance: EX 15 Resistance: EM 75 Resistance: I 15 Resistance: S 15 Resistance: P 15 Weapon Shielding 100 Weapon Cycling 25 Phase Shifting 8 Evasion (%) 60 Targeting Accuracy 20 Target Analysis 11 Core Analysis 8 Recoil Reduction 6 Matter Filtering 50 Kinecelleration 50 Offensive Hacking 20 Authchip Count 2 Item Schematics ----------------- Huge Storage Unit | -10/Materials | Hacked Adv. Myomer Leg | -8/Materials | Scanalyzed Exp. Heat Sink | -8/Materials | Scanalyzed Imp. Signal Interpreter | -8/Materials | Hacked Seismic Detector | -8/Materials | Hacked Adv. Weapon Cycler | -8/Materials | Scanalyzed Imp. Transmission Jammer | -8/Materials | Scanalyzed Hvy. Plasma Cannon | -7/Zion | Archive Mak. Armor Plating | -7/Zion | Archive Adv. ECM Suite | -7/Zion | Archive Plasma Flamer | -7/Zion | Archive Variable Charge Gun | -7/Zion | Archive Proton Missile Launcher | -7/Zion | Archive 0b10 Decoder Chip [Scout] | -7/Zion | Archive Gatling Laser | -7/Zion | Archive Arc Thrower | -7/Zion | Archive Core Analyzer | -7/Zion | Archive Lyr. Medium Armor Plating | -7/Zion | Archive Imp. Shield Generator | -7/Zion | Archive Imp. Medium Treads | -7/Zion | Archive Mak. Shrapnel Gun | -7/Zion | Archive Imp. Arc Projector | -7/Zion | Archive Hvy. Missile Launcher | -6/Factory | Hacked Powered Armor | -6/Factory | Hacked Assault Drone Bay | -5/Zhirov | Free Exp. Optical Array | -5/Zhirov | Free Imp. Arc Thrower | -5/Zhirov | Free Adv. Force Field | -4/Factory | Hacked Imp. Heavy Treads | -3/Research | Scanalyzed Biometal Heavy Treads | -3/Research | Hacked Lyr. Heavy Armor Plating | -3/Testing | Scanalyzed Stealth Drone Bay | -3/Testing | Archive Gravity Flail | -3/Testing | Archive Imp. Energy Mantle | -3/Testing | Archive Hvy. Neutron Cannon | -3/Testing | Archive Zero-point Reactor | -2/Research | Scanalyzed Robot Schematics ------------------ M-13 Machinist | -10/Materials | Hacked G-47 Trooper | -7/Zion | Archive S-27 Virus | -7/Zion | Archive D-83 Annihilator | -7/Zion | Archive Fabricated ------------ Adv. Myomer Leg | x1 | -6/Proximity Caves M-13 Machinist | x1 | -6/Factory | Authchip Hvy. Missile Launcher | x1 | -6/Factory | Authchip Powered Armor | x2 | -6/Factory Adv. Force Field | x2 | -4/Factory Biometal Heavy Treads | x2 | -3/Research | Authchip Alien Tech Used ----------------- Integrated Dissipator Core Expander Phase Redirector Core Stripper Achievements -------------- Shocking Conclusion Sniper Challenges ------------ None Game ------ Seed ReactiveThermoelectricBox Manual? 0 Play Time 12:15:26 Cumulative 399.4 hours Start 2023.02.12 @ 03:49:27 End 2023.02.22 @ 01:35:10 Sessions 75 Manual Loads 0 Difficulty Rogue Special Mode None Game No. 171 Rogue 171 Adventurer 0 Explorer 0 Win Type - Total 9 Types 6/0/1/1/0/0/0/1/0 Lore% 89 Gallery% 92 Achievement% 71 Wizard Run 0 Options --------- ASCII 1 Keyboard 1 Movement Vi Keybinds 0 Fullscreen 2 Font 18/Cog Map View 76x50 Tactical HUD 1 Map Filters NONE Filters NONE Steam 0 RUN: 927910db-4f02-4654-a4ee-982f65b97803